Workbook

Sheet 1A DE ENERO 2016
T1: =SUBTOTAL(9,T9:T262) -> 0 | U1: 38684.35367 | V1: 1740795.9 | W1: 69631.83 | X1: 121854.48 | Y1: 0 | Z1: 191486.31 | AA1: 1740795.9 | AB1: 1932282.21 | AD1: =SUBTOTAL(9,AD9:AD262) -> 12198 | AE1: =SUBTOTAL(9,AE9:AE262) -> 0 | AF1: =SUBTOTAL(9,AF9:AF241) -> 126392.3125 | AG1: =SUBTOTAL(9,AG9:AG262) -> 151415.64 | AH1: =SUBTOTAL(9,AH9:AH262) -> 5327.46 | AI1: =SUBTOTAL(9,AI9:AI262) -> 1773996.03 | AK1: =SUBTOTAL(9,AK9:AK241) -> 0
V2: =TRUNC(U2*P2,2) -> 0 | W2: =TRUNC(U2*P2*0.04,2) -> 0 | X2: =TRUNC(U2*0.07*P2,2) -> 0 | Y2: =S2 -> 0 | Z2: =TRUNC(X2+W2+(IF(Y2>519,519,Y2))+IF(R2=0,0,R2*U2),2) -> 0 | AA2: =TRUNC((IF(R2=0,P2*U2,(P2-R2)*U2))+(IF(Y2<519,0,Y2-519)),2)+T2 -> 0 | AB2: =Z2+AA2 -> 0 | AC2: =W2 -> 0 | AF2: =IF(U2>0.01,(AA2-VLOOKUP(AA2,quincenal,1))*VLOOKUP(AA2,quincenal,3)+VLOOKUP(AA2,quincenal,2)-VLOOKUP(AA2,subquincenal,2),0) -> 0 | AG2: =TRUNC(IF(AF2>0.01,AF2,0),2) -> 0 | AH2: =TRUNC(IF(AF2<0.01,-AF2,0),2) -> 0 | AI2: =AB2-AD2-AE2-AG2+AH2-W2 -> 0 | AJ2: =#REF! -> 
A3: H. AYUNTAMIENTO DE ETZATLAN, JALISCO
B4: ADMINISTRACION 2015-2018
B5: NOMINA CORRESPONDIENTE A LA PRIMERA QUINCENA DE ENERO DE 2016
D6: Etzatlán, Jalisco a 15 de Enero de 2016.
B7: CAPITULO | C7: PARTIDA | D7: NOMBRE | E7: RFC | F7: CURP | G7: FECHA DE INGRESO | H7: CARGO | P7: DIAS LABORADOS | Q7: PAGO CON | R7: DIAS CON INCAPACIDAD | S7: TIEMPO EXTRA | T7: OTROS INGRESOS | U7: SUELDO POR DIA PROPUESTO | V7: SUELDO BASE | W7: FONDO DE AHORRO | X7: APOYO EDUCACIONAL | Y7: TIEMPO EXTRA | Z7: SUB TOTAL EXENTO | AA7: SUB TOTAL GRAVADO | AB7: SUB TOTAL A PAGAR | AC7: FONDO DE AHORRO | AD7: PRESTAMOS | AE7: OTRAS DEDUCCIONES | AF7: CALCULO | AG7: I.S.R. | AH7: SUBSIDIO AL EMPLEO | AI7: TOTAL A PAGAR | AJ7: nomina | AK7: FIRMA DE RECIBIDO
D8: SALA DE REGIDORES
A9: 1 | B9: 1 | C9: 1 | D9: GOMEZ ALVARADO MA MAGDALENA | E9: FEGC520708 | F9: FEGC520708HJCRMR08 | G9: 2012-10-01 | H9: REGIDOR | P9: 15 | Q9: TARJETA | S9: 0 | T9: 0 | U9: =16688/30 -> 556.2666667 | V9: =TRUNC(U9*P9,2) -> 8344 | W9: =TRUNC(U9*P9*0.04,2) -> 333.76 | X9: =TRUNC(U9*0.07*P9,2) -> 584.08 | Y9: =S9 -> 0 | Z9: =TRUNC(X9+W9+(IF(Y9>519,519,Y9))+IF(R9=0,0,R9*U9),2) -> 917.84 | AA9: =TRUNC((IF(R9=0,P9*U9,(P9-R9)*U9))+(IF(Y9<519,0,Y9-519)),2)+T9 -> 8344 | AB9: =Z9+AA9 -> 9261.84 | AE9: 0 | AF9: =IF(U9>0.01,(AA9-VLOOKUP(AA9,quincenal,1))*VLOOKUP(AA9,quincenal,3)+VLOOKUP(AA9,quincenal,2)-VLOOKUP(AA9,subquincenal,2),0) -> 1235.089224 | AG9: =TRUNC(IF(AF9>0.01,AF9,0),2) -> 1235.08 | AH9: =TRUNC(IF(AF9<0.01,-AF9,0),2) -> 0 | AI9: =AB9-AD9-AE9-AG9+AH9 -> 8026.76 | AJ9: =#REF! ->  | AL9: 1
A10: 2 | D10: COVARRUBIAS VALENCIA JOSE | H10: REGIDOR | P10: 15 | Q10: TARJETA | S10: 0 | T10: 0 | U10: =16688/30 -> 556.2666667 | V10: =TRUNC(U10*P10,2) -> 8344 | W10: =TRUNC(U10*P10*0.04,2) -> 333.76 | X10: =TRUNC(U10*0.07*P10,2) -> 584.08 | Y10: =S10 -> 0 | Z10: =TRUNC(X10+W10+(IF(Y10>519,519,Y10))+IF(R10=0,0,R10*U10),2) -> 917.84 | AA10: =TRUNC((IF(R10=0,P10*U10,(P10-R10)*U10))+(IF(Y10<519,0,Y10-519)),2)+T10 -> 8344 | AB10: =Z10+AA10 -> 9261.84 | AE10: 0 | AF10: =IF(U10>0.01,(AA10-VLOOKUP(AA10,quincenal,1))*VLOOKUP(AA10,quincenal,3)+VLOOKUP(AA10,quincenal,2)-VLOOKUP(AA10,subquincenal,2),0) -> 1235.089224 | AG10: =TRUNC(IF(AF10>0.01,AF10,0),2) -> 1235.08 | AH10: =TRUNC(IF(AF10<0.01,-AF10,0),2) -> 0 | AI10: =AB10-AD10-AE10-AG10+AH10 -> 8026.76 | AL10: 2
A11: 3 | B11: 1 | C11: 1 | D11: BARAJAS DE LA TORRE ABIGAIL | G11: 2012-10-01 | H11: REGIDOR | P11: 15 | Q11: TARJETA | S11: 0 | T11: 0 | U11: 556.2666667 | V11: =TRUNC(U11*P11,2) -> 8344 | W11: =TRUNC(U11*P11*0.04,2) -> 333.76 | X11: =TRUNC(U11*0.07*P11,2) -> 584.08 | Y11: =S11 -> 0 | Z11: =TRUNC(X11+W11+(IF(Y11>519,519,Y11))+IF(R11=0,0,R11*U11),2) -> 917.84 | AA11: =TRUNC((IF(R11=0,P11*U11,(P11-R11)*U11))+(IF(Y11<519,0,Y11-519)),2)+T11 -> 8344 | AB11: =Z11+AA11 -> 9261.84 | AE11: 0 | AF11: =IF(U11>0.01,(AA11-VLOOKUP(AA11,quincenal,1))*VLOOKUP(AA11,quincenal,3)+VLOOKUP(AA11,quincenal,2)-VLOOKUP(AA11,subquincenal,2),0) -> 1235.089224 | AG11: 1235.08 | AH11: =TRUNC(IF(AF11<0.01,-AF11,0),2) -> 0 | AI11: =AB11-AD11-AE11-AG11+AH11 -> 8026.76 | AJ11: =#REF! ->  | AL11: 3
A12: 4 | B12: 1 | C12: 1 | D12: MELCHOR NAVARRO OBED | G12: 2012-10-01 | H12: REGIDOR | P12: 15 | Q12: TARJETA | S12: 0 | T12: 0 | U12: 556.2666667 | V12: 8344 | W12: 333.76 | X12: 584.08 | Y12: 0 | Z12: 917.84 | AA12: 8344 | AB12: 9261.84 | AE12: 0 | AF12: 1235.089224 | AG12: 1235.08 | AH12: 0 | AI12: 8026.76 | AJ12: =#REF! ->  | AL12: 4
A13: 5 | B13: 1 | C13: 1 | D13: GOMEZ RICO LUZ ELENA | G13: 2012-10-01 | H13: REGIDOR | P13: 15 | Q13: TARJETA | S13: 0 | T13: 0 | U13: 556.2666667 | V13: 8344 | W13: 333.76 | X13: 584.08 | Y13: 0 | Z13: 917.84 | AA13: 8344 | AB13: 9261.84 | AE13: 0 | AF13: 1235.089224 | AG13: 1235.08 | AH13: 0 | AI13: 8026.76 | AJ13: =#REF! ->  | AL13: 5
A14: 6 | B14: 1 | C14: 1 | D14: GUTIERREZ GARCIA GERARDO | G14: 2012-10-01 | H14: REGIDOR | P14: 15 | Q14: TARJETA | S14: 0 | T14: 0 | U14: 556.2666667 | V14: 8344 | W14: 333.76 | X14: 584.08 | Y14: 0 | Z14: 917.84 | AA14: 8344 | AB14: 9261.84 | AE14: 0 | AF14: 1235.089224 | AG14: 1235.08 | AH14: 0 | AI14: 8026.76 | AJ14: =#REF! ->  | AL14: 6
A15: 7 | B15: 1 | C15: 1 | D15: ROBLEDO ORTIZ EDGAR ANTONIO | G15: 2012-10-01 | H15: REGIDOR | P15: 15 | Q15: TARJETA | S15: 0 | T15: 0 | U15: 556.2666667 | V15: 8344 | W15: 333.76 | X15: 584.08 | Y15: 0 | Z15: 917.84 | AA15: 8344 | AB15: 9261.84 | AF15: 1235.089224 | AG15: 1235.08 | AH15: 0 | AI15: 8026.76 | AJ15: =#REF! ->  | AL15: 7
A16: 8 | B16: 1 | C16: 1 | D16: SIERRA ROMERO DOLORES EDITH | G16: 2012-10-01 | H16: REGIDOR | P16: 15 | Q16: TARJETA | S16: 0 | T16: 0 | U16: 556.2666667 | V16: 8344 | W16: 333.76 | X16: 584.08 | Y16: 0 | Z16: 917.84 | AA16: 8344 | AB16: 9261.84 | AF16: 1235.089224 | AG16: 1235.08 | AH16: 0 | AI16: 8026.76 | AJ16: =#REF! ->  | AL16: 8
A17: 9 | B17: 1 | C17: 1 | D17: VELEZ FREGOSO LUIS MANUEL | G17: 2012-10-01 | H17: REGIDOR | P17: 15 | Q17: TARJETA | S17: 0 | T17: 0 | U17: 556.2666667 | V17: 8344 | W17: 333.76 | X17: 584.08 | Y17: 0 | Z17: 917.84 | AA17: 8344 | AB17: 9261.84 | AD17: 0 | AF17: 1235.089224 | AG17: 1235.08 | AH17: 0 | AI17: 8026.76 | AJ17: =#REF! ->  | AL17: 9
D18: SALA DE REGIDORES | V18: =SUM(V9:V17) -> 75096 | W18: 3003.84 | X18: 5256.72 | Y18: 0 | Z18: 8260.56 | AA18: 75096 | AB18: 83356.56 | AC18: 0 | AD18: 0 | AE18: 0 | AF18: 11115.80302 | AG18: 11115.72 | AH18: 0 | AI18: 72240.84 | AK18: 0
D20: PRESIDENCIA MUNICIPAL
A21: 10 | D21: RON RAMOS EDUARDO | H21: PRESIDENTE MUNICIPAL | P21: 15 | Q21: TARJETA | S21: 0 | T21: 0 | U21: =29592/30 -> 986.4 | V21: =TRUNC(U21*P21,2) -> 14796 | W21: =TRUNC(U21*P21*0.04,2) -> 591.84 | X21: =TRUNC(U21*0.07*P21,2) -> 1035.72 | Y21: =S21 -> 0 | Z21: =TRUNC(X21+W21+(IF(Y21>519,519,Y21))+IF(R21=0,0,R21*U21),2) -> 1627.56 | AA21: =TRUNC((IF(R21=0,P21*U21,(P21-R21)*U21))+(IF(Y21<519,0,Y21-519)),2)+T21 -> 14796 | AB21: =Z21+AA21 -> 16423.56 | AE21: 0 | AF21: =IF(U21>0.01,(AA21-VLOOKUP(AA21,quincenal,1))*VLOOKUP(AA21,quincenal,3)+VLOOKUP(AA21,quincenal,2)-VLOOKUP(AA21,subquincenal,2),0) -> 2711.331408 | AG21: =TRUNC(IF(AF21>0.01,AF21,0),2) -> 2711.33 | AH21: =TRUNC(IF(AF21<0.01,-AF21,0),2) -> 0 | AI21: =AB21-AD21-AE21-AG21+AH21 -> 13712.23 | AL21: 10
A22: 11 | D22: BAROCIO FIGUEROA ANTONIO | E22: FEPM871023ND1 | F22: FEPM871023MJCRRR07 | H22: SECRETARIO PARTICULAR | P22: 15 | Q22: TARJETA | S22: 0 | T22: 0 | U22: =12653/30 -> 421.7666667 | V22: =TRUNC(U22*P22,2) -> 6326.5 | W22: =TRUNC(U22*P22*0.04,2) -> 253.06 | X22: =TRUNC(U22*0.07*P22,2) -> 442.85 | Y22: =S22 -> 0 | Z22: =TRUNC(X22+W22+(IF(Y22>519,519,Y22))+IF(R22=0,0,R22*U22),2) -> 695.91 | AA22: =TRUNC((IF(R22=0,P22*U22,(P22-R22)*U22))+(IF(Y22<519,0,Y22-519)),2)+T22 -> 6326.5 | AB22: =Z22+AA22 -> 7022.41 | AE22: 0 | AF22: =IF(U22>0.01,(AA22-VLOOKUP(AA22,quincenal,1))*VLOOKUP(AA22,quincenal,3)+VLOOKUP(AA22,quincenal,2)-VLOOKUP(AA22,subquincenal,2),0) -> 804.151224 | AG22: =TRUNC(IF(AF22>0.01,AF22,0),2) -> 804.15 | AH22: =TRUNC(IF(AF22<0.01,-AF22,0),2) -> 0 | AI22: =AB22-AD22-AE22-AG22+AH22 -> 6218.26 | AL22: 11
A23: 12 | D23: BECERRA GONZALEZ MARISOL | E23: FEPM871023ND1 | F23: FEPM871023MJCRRR07 | H23: SECRETARIA | P23: 15 | Q23: TARJETA | S23: 0 | T23: 0 | U23: =8121/30 -> 270.7 | V23: =TRUNC(U23*P23,2) -> 4060.5 | W23: =TRUNC(U23*P23*0.04,2) -> 162.42 | X23: =TRUNC(U23*0.07*P23,2) -> 284.23 | Y23: =S23 -> 0 | Z23: =TRUNC(X23+W23+(IF(Y23>519,519,Y23))+IF(R23=0,0,R23*U23),2) -> 446.65 | AA23: =TRUNC((IF(R23=0,P23*U23,(P23-R23)*U23))+(IF(Y23<519,0,Y23-519)),2)+T23 -> 4060.5 | AB23: =Z23+AA23 -> 4507.15 | AE23: 0 | AF23: =IF(U23>0.01,(AA23-VLOOKUP(AA23,quincenal,1))*VLOOKUP(AA23,quincenal,3)+VLOOKUP(AA23,quincenal,2)-VLOOKUP(AA23,subquincenal,2),0) -> 358.7684 | AG23: =TRUNC(IF(AF23>0.01,AF23,0),2) -> 358.76 | AH23: =TRUNC(IF(AF23<0.01,-AF23,0),2) -> 0 | AI23: =AB23-AD23-AE23-AG23+AH23 -> 4148.39 | AJ23: =#REF! ->  | AL23: 12
D24: PRESIDENCIA MUNICIPAL | V24: =SUM(V21:V23) -> 25183 | W24: 1007.32 | X24: 1762.8 | Y24: 0 | Z24: 2770.12 | AA24: 25183 | AB24: 27953.12 | AC24: 0 | AD24: 0 | AE24: 0 | AF24: 3874.251032 | AG24: 3874.24 | AH24: 0 | AI24: 24078.88
D26: SECRETARIA GENERAL Y SINDICATURA
A27: 13 | B27: 1 | C27: 5 | D27: FREGOSO BARBOZA MARTIN DANIEL | H27: SINDICO MUNICIPAL | P27: 15 | Q27: TARJETA | S27: 0 | T27: 0 | U27: =21439/30 -> 714.6333333 | V27: =TRUNC(U27*P27,2) -> 10719.5 | W27: =TRUNC(U27*P27*0.04,2) -> 428.78 | X27: =TRUNC(U27*0.07*P27,2) -> 750.36 | Y27: =S27 -> 0 | Z27: =TRUNC(X27+W27+(IF(Y27>519,519,Y27))+IF(R27=0,0,R27*U27),2) -> 1179.14 | AA27: =TRUNC((IF(R27=0,P27*U27,(P27-R27)*U27))+(IF(Y27<519,0,Y27-519)),2)+T27 -> 10719.5 | AB27: =Z27+AA27 -> 11898.64 | AD27: 0 | AE27: 0 | AF27: =IF(U27>0.01,(AA27-VLOOKUP(AA27,quincenal,1))*VLOOKUP(AA27,quincenal,3)+VLOOKUP(AA27,quincenal,2)-VLOOKUP(AA27,subquincenal,2),0) -> 1752.538608 | AG27: =TRUNC(IF(AF27>0.01,AF27,0),2) -> 1752.53 | AH27: =TRUNC(IF(AF27<0.01,-AF27,0),2) -> 0 | AI27: =AB27-AD27-AE27-AG27+AH27 -> 10146.11 | AJ27: =#REF! ->  | AL27: 14
A28: 14 | B28: 1 | C28: 1 | D28: MEDINA FLORES EVERARDO | G28: 2012-10-01 | H28: SECRETARIO GENERAL | P28: 15 | Q28: TARJETA | S28: 0 | T28: 0 | U28: =19266/30 -> 642.2 | V28: =TRUNC(U28*P28,2) -> 9633 | W28: =TRUNC(U28*P28*0.04,2) -> 385.32 | X28: =TRUNC(U28*0.07*P28,2) -> 674.31 | Y28: =S28 -> 0 | Z28: =TRUNC(X28+W28+(IF(Y28>519,519,Y28))+IF(R28=0,0,R28*U28),2) -> 1059.63 | AA28: =TRUNC((IF(R28=0,P28*U28,(P28-R28)*U28))+(IF(Y28<519,0,Y28-519)),2)+T28 -> 9633 | AB28: =Z28+AA28 -> 10692.63 | AE28: 0 | AF28: =IF(U28>0.01,(AA28-VLOOKUP(AA28,quincenal,1))*VLOOKUP(AA28,quincenal,3)+VLOOKUP(AA28,quincenal,2)-VLOOKUP(AA28,subquincenal,2),0) -> 1510.419624 | AG28: =TRUNC(IF(AF28>0.01,AF28,0),2) -> 1510.41 | AH28: =TRUNC(IF(AF28<0.01,-AF28,0),2) -> 0 | AI28: =AB28-AD28-AE28-AG28+AH28 -> 9182.22 | AL28: 15
A29: 15 | D29: GUTIERREZ SIORDIA LORENA | H29: SECRETARIA DE SECRETARIA GENERAL | P29: 15 | Q29: TARJETA | S29: 0 | T29: 0 | U29: =5714/30 -> 190.4666667 | V29: =TRUNC(U29*P29,2) -> 2857 | W29: =TRUNC(U29*P29*0.04,2) -> 114.28 | X29: =TRUNC(U29*0.07*P29,2) -> 199.99 | Y29: =S29 -> 0 | Z29: =TRUNC(X29+W29+(IF(Y29>519,519,Y29))+IF(R29=0,0,R29*U29),2) -> 314.27 | AA29: =TRUNC((IF(R29=0,P29*U29,(P29-R29)*U29))+(IF(Y29<519,0,Y29-519)),2)+T29 -> 2857 | AB29: =Z29+AA29 -> 3171.27 | AE29: 0 | AF29: =IF(U29>0.01,(AA29-VLOOKUP(AA29,quincenal,1))*VLOOKUP(AA29,quincenal,3)+VLOOKUP(AA29,quincenal,2)-VLOOKUP(AA29,subquincenal,2),0) -> 61.408512 | AG29: =TRUNC(IF(AF29>0.01,AF29,0),2) -> 61.4 | AH29: =TRUNC(IF(AF29<0.01,-AF29,0),2) -> 0 | AI29: =AB29-AD29-AE29-AG29+AH29 -> 3109.87 | AL29: 16
A30: 16 | D30: CARDENAS GUEVARA JORGE RAFAEL | H30: AUXILIAR ADMINISTRATIVO | P30: 15 | Q30: TARJETA | S30: 0 | T30: 0 | U30: =5714/30 -> 190.4666667 | V30: =TRUNC(U30*P30,2) -> 2857 | W30: =TRUNC(U30*P30*0.04,2) -> 114.28 | X30: =TRUNC(U30*0.07*P30,2) -> 199.99 | Y30: =S30 -> 0 | Z30: =TRUNC(X30+W30+(IF(Y30>519,519,Y30))+IF(R30=0,0,R30*U30),2) -> 314.27 | AA30: =TRUNC((IF(R30=0,P30*U30,(P30-R30)*U30))+(IF(Y30<519,0,Y30-519)),2)+T30 -> 2857 | AB30: =Z30+AA30 -> 3171.27 | AE30: 0 | AF30: =IF(U30>0.01,(AA30-VLOOKUP(AA30,quincenal,1))*VLOOKUP(AA30,quincenal,3)+VLOOKUP(AA30,quincenal,2)-VLOOKUP(AA30,subquincenal,2),0) -> 61.408512 | AG30: =TRUNC(IF(AF30>0.01,AF30,0),2) -> 61.4 | AH30: =TRUNC(IF(AF30<0.01,-AF30,0),2) -> 0 | AI30: =AB30-AD30-AE30-AG30+AH30 -> 3109.87 | AJ30: =#REF! ->  | AL30: 17
D31: SECRETARIA GENERAL Y SINDICATURA | V31: =SUM(V27:V30) -> 26066.5 | W31: 1042.66 | X31: 1824.65 | Y31: 0 | Z31: 2867.31 | AA31: 26066.5 | AB31: 28933.81 | AC31: 0 | AD31: 0 | AE31: 0 | AF31: =SUM(AF27:AF30) -> 3385.775256 | AG31: 3385.74 | AH31: 0 | AI31: 25548.07
D33: OFICIALIA MAYOR ADMINISTRATIVA
A34: 17 | D34: LEDESMA MORAN JOSE FEDERICO | H34: OFICIAL MAYOR | P34: 15 | Q34: TARJETA | S34: 0 | T34: 0 | U34: =15321/30 -> 510.7 | V34: =TRUNC(U34*P34,2) -> 7660.5 | W34: =TRUNC(U34*P34*0.04,2) -> 306.42 | X34: =TRUNC(U34*0.07*P34,2) -> 536.23 | Y34: =S34 -> 0 | Z34: =TRUNC(X34+W34+(IF(Y34>519,519,Y34))+IF(R34=0,0,R34*U34),2) -> 842.65 | AA34: =TRUNC((IF(R34=0,P34*U34,(P34-R34)*U34))+(IF(Y34<519,0,Y34-519)),2)+T34 -> 7660.5 | AB34: =Z34+AA34 -> 8503.15 | AE34: 0 | AF34: =IF(U34>0.01,(AA34-VLOOKUP(AA34,quincenal,1))*VLOOKUP(AA34,quincenal,3)+VLOOKUP(AA34,quincenal,2)-VLOOKUP(AA34,subquincenal,2),0) -> 1089.093624 | AG34: =TRUNC(IF(AF34>0.01,AF34,0),2) -> 1089.09 | AH34: =TRUNC(IF(AF34<0.01,-AF34,0),2) -> 0 | AI34: =AB34-AD34-AE34-AG34+AH34 -> 7414.06 | AL34: 18
A35: 18 | D35: VENTURA PEREZ HERLINDA AURORA | E35: VEPH840722PR4 | F35: VEPH840722MJCNRR04 | H35: SECRETARIA | P35: 15 | Q35: TARJETA | S35: 0 | T35: 0 | U35: =6356/30 -> 211.8666667 | V35: =TRUNC(U35*P35,2) -> 3178 | W35: =TRUNC(U35*P35*0.04,2) -> 127.12 | X35: =TRUNC(U35*0.07*P35,2) -> 222.46 | Y35: 0 | Z35: =TRUNC(X35+W35+(IF(Y35>519,519,Y35))+IF(R35=0,0,R35*U35),2) -> 349.58 | AA35: =TRUNC((IF(R35=0,P35*U35,(P35-R35)*U35))+(IF(Y35<519,0,Y35-519)),2)+T35 -> 3178 | AB35: 3527.58 | AD35: 0 | AE35: 0 | AF35: =IF(U35>0.01,(AA35-VLOOKUP(AA35,quincenal,1))*VLOOKUP(AA35,quincenal,3)+VLOOKUP(AA35,quincenal,2)-VLOOKUP(AA35,subquincenal,2),0) -> 116.583312 | AG35: 116.58 | AH35: 0 | AI35: 3411 | AJ35: =[2]PORTADA!$D$10 -> 1 | AL35: 19
D36: OFICIALIA MAYOR ADMINISTRATIVA | V36: =SUM(V34:V35) -> 10838.5 | W36: 433.54 | X36: 758.69 | Y36: 0 | Z36: 1192.23 | AA36: 10838.5 | AB36: 12030.73 | AC36: 0 | AD36: 0 | AE36: 0 | AF36: 1205.676936 | AG36: 1205.67 | AH36: 0 | AI36: 10825.06 | AL36: 20
D38: DEPARTAMENTO JURIDICO
A39: 19 | B39: 1 | C39: 7 | D39: FREGOSO MEDRANO CARLOS ALEJANDRO | H39: DIRECTOR JURIDICO | P39: 15 | Q39: TARJETA | S39: 0 | T39: 0 | U39: =20774/30 -> 692.4666667 | V39: =TRUNC(U39*P39,2) -> 10387 | W39: =TRUNC(U39*P39*0.04,2) -> 415.48 | X39: =TRUNC(U39*0.07*P39,2) -> 727.09 | Y39: =S39 -> 0 | Z39: =TRUNC(X39+W39+(IF(Y39>519,519,Y39))+IF(R39=0,0,R39*U39),2) -> 1142.57 | AA39: =TRUNC((IF(R39=0,P39*U39,(P39-R39)*U39))+(IF(Y39<519,0,Y39-519)),2)+T39 -> 10387 | AB39: =Z39+AA39 -> 11529.57 | AD39: 500 | AE39: 0 | AF39: =IF(U39>0.01,(AA39-VLOOKUP(AA39,quincenal,1))*VLOOKUP(AA39,quincenal,3)+VLOOKUP(AA39,quincenal,2)-VLOOKUP(AA39,subquincenal,2),0) -> 1674.334608 | AG39: =TRUNC(IF(AF39>0.01,AF39,0),2) -> 1674.33 | AH39: =TRUNC(IF(AF39<0.01,-AF39,0),2) -> 0 | AI39: =AB39-AD39-AE39-AG39+AH39 -> 9355.24 | AJ39: =[2]PORTADA!$D$10 -> 1 | AL39: 22
A40: 20 | D40: REYNAGA LOPEZ NAHSDHELLY ALEJANDRA | H40: AUXILIAR JURIDICO | P40: 15 | Q40: TARJETA | S40: 0 | T40: 0 | U40: =8104/30 -> 270.1333333 | V40: =TRUNC(U40*P40,2) -> 4052 | W40: =TRUNC(U40*P40*0.04,2) -> 162.08 | X40: =TRUNC(U40*0.07*P40,2) -> 283.64 | Y40: =S40 -> 0 | Z40: =TRUNC(X40+W40+(IF(Y40>519,519,Y40))+IF(R40=0,0,R40*U40),2) -> 445.72 | AA40: =TRUNC((IF(R40=0,P40*U40,(P40-R40)*U40))+(IF(Y40<519,0,Y40-519)),2)+T40 -> 4052 | AB40: =Z40+AA40 -> 4497.72 | AE40: 0 | AF40: =IF(U40>0.01,(AA40-VLOOKUP(AA40,quincenal,1))*VLOOKUP(AA40,quincenal,3)+VLOOKUP(AA40,quincenal,2)-VLOOKUP(AA40,subquincenal,2),0) -> 357.4084 | AG40: =TRUNC(IF(AF40>0.01,AF40,0),2) -> 357.4 | AH40: =TRUNC(IF(AF40<0.01,-AF40,0),2) -> 0 | AI40: =AB40-AD40-AE40-AG40+AH40 -> 4140.32 | AL40: 23
A41: 21 | D41: CARRILLO MUÑOZ CESAR OMAR | E41: CARH770717 | F41: CARH770717HJCRDG01 | H41: JUEZ MUNICIPAL | P41: 15 | Q41: TARJETA | S41: 0 | T41: 0 | U41: =9593/30 -> 319.7666667 | V41: =TRUNC(U41*P41,2) -> 4796.5 | W41: =TRUNC(U41*P41*0.04,2) -> 191.86 | X41: =TRUNC(U41*0.07*P41,2) -> 335.75 | Y41: =S41 -> 0 | Z41: =TRUNC(X41+W41+(IF(Y41>519,519,Y41))+IF(R41=0,0,R41*U41),2) -> 527.61 | AA41: =TRUNC((IF(R41=0,P41*U41,(P41-R41)*U41))+(IF(Y41<519,0,Y41-519)),2)+T41 -> 4796.5 | AB41: =Z41+AA41 -> 5324.11 | AD41: 500 | AE41: 0 | AF41: =IF(U41>0.01,(AA41-VLOOKUP(AA41,quincenal,1))*VLOOKUP(AA41,quincenal,3)+VLOOKUP(AA41,quincenal,2)-VLOOKUP(AA41,subquincenal,2),0) -> 487.038288 | AG41: =TRUNC(IF(AF41>0.01,AF41,0),2) -> 487.03 | AH41: =TRUNC(IF(AF41<0.01,-AF41,0),2) -> 0 | AI41: =AB41-AD41-AE41-AG41+AH41 -> 4337.08 | AL41: 24
D42: DEPARTAMENTO JURIDICO | V42: =SUM(V39:V41) -> 19235.5 | W42: 769.42 | X42: 1346.48 | Y42: 0 | Z42: 2115.9 | AA42: 19235.5 | AB42: 21351.4 | AC42: 0 | AD42: 1000 | AE42: 0 | AF42: 2518.781296 | AG42: 2518.76 | AH42: 0 | AI42: 17832.64
D44: UNIDAD DE TRANSPARENCIA
A45: 22 | D45: ALDAZ VELEZ LORENZO MIGUEL | E45: HEEG670312 | F45: HEER670312MJCRNS06 | G45: 2007-01-08 | H45: DIRECTOR DE TRANSPARENCIA | P45: 15 | Q45: TARJETA | S45: 0 | T45: 0 | U45: =12653/30 -> 421.7666667 | V45: =TRUNC(U45*P45,2) -> 6326.5 | W45: =TRUNC(U45*P45*0.04,2) -> 253.06 | X45: =TRUNC(U45*0.07*P45,2) -> 442.85 | Y45: =S45 -> 0 | Z45: =TRUNC(X45+W45+(IF(Y45>519,519,Y45))+IF(R45=0,0,R45*U45),2) -> 695.91 | AA45: =TRUNC((IF(R45=0,P45*U45,(P45-R45)*U45))+(IF(Y45<519,0,Y45-519)),2)+T45 -> 6326.5 | AB45: =Z45+AA45 -> 7022.41 | AE45: 0 | AF45: =IF(U45>0.01,(AA45-VLOOKUP(AA45,quincenal,1))*VLOOKUP(AA45,quincenal,3)+VLOOKUP(AA45,quincenal,2)-VLOOKUP(AA45,subquincenal,2),0) -> 804.151224 | AG45: =TRUNC(IF(AF45>0.01,AF45,0),2) -> 804.15 | AH45: =TRUNC(IF(AF45<0.01,-AF45,0),2) -> 0 | AI45: =AB45-AD45-AE45-AG45+AH45 -> 6218.26 | AJ45: =#REF! ->  | AL45: 25
A46: 23 | D46: MONTERO REYES HECTOR CARLOS | E46: PAGM780607 | F46: PAGM780607MJCLRR03 | H46: AUXILIAR DE TRANSPARENCIA | P46: 15 | Q46: TARJETA | S46: 0 | T46: 0 | U46: =6795/30 -> 226.5 | V46: =TRUNC(U46*P46,2) -> 3397.5 | W46: =TRUNC(U46*P46*0.04,2) -> 135.9 | X46: =TRUNC(U46*0.07*P46,2) -> 237.82 | Y46: =S46 -> 0 | Z46: =TRUNC(X46+W46+(IF(Y46>519,519,Y46))+IF(R46=0,0,R46*U46),2) -> 373.72 | AA46: =TRUNC((IF(R46=0,P46*U46,(P46-R46)*U46))+(IF(Y46<519,0,Y46-519)),2)+T46 -> 3397.5 | AB46: =Z46+AA46 -> 3771.22 | AE46: 0 | AF46: =IF(U46>0.01,(AA46-VLOOKUP(AA46,quincenal,1))*VLOOKUP(AA46,quincenal,3)+VLOOKUP(AA46,quincenal,2)-VLOOKUP(AA46,subquincenal,2),0) -> 140.464912 | AG46: =TRUNC(IF(AF46>0.01,AF46,0),2) -> 140.46 | AH46: =TRUNC(IF(AF46<0.01,-AF46,0),2) -> 0 | AI46: =AB46-AD46-AE46-AG46+AH46 -> 3630.76 | AJ46: =#REF! ->  | AL46: 26
D47: UNIDAD DE TRANSPARENCIA | V47: =SUM(V45:V46) -> 9724 | W47: =SUM(W45:W46) -> 388.96 | X47: 680.67 | Y47: 0 | Z47: 1069.63 | AA47: 9724 | AB47: 10793.63 | AC47: 0 | AD47: 0 | AE47: 0 | AF47: 944.616136 | AG47: 944.61 | AH47: 0 | AI47: 9849.02
D49: DIRECCION DE REGISTRO CIVIL
A50: 24 | D50: NAVARRO HERNANDEZ ALMA SAGRARIO | E50: HEEG670312 | F50: HEER670312MJCRNS06 | G50: 2007-01-08 | H50: JEFE OFICIAL DE REGISTRO CIVIL | P50: 15 | Q50: TARJETA | S50: 0 | T50: 0 | U50: =5714/30 -> 190.4666667 | V50: =TRUNC(U50*P50,2) -> 2857 | W50: =TRUNC(U50*P50*0.04,2) -> 114.28 | X50: =TRUNC(U50*0.07*P50,2) -> 199.99 | Y50: =S50 -> 0 | Z50: =TRUNC(X50+W50+(IF(Y50>519,519,Y50))+IF(R50=0,0,R50*U50),2) -> 314.27 | AA50: =TRUNC((IF(R50=0,P50*U50,(P50-R50)*U50))+(IF(Y50<519,0,Y50-519)),2)+T50 -> 2857 | AB50: =Z50+AA50 -> 3171.27 | AE50: 0 | AF50: =IF(U50>0.01,(AA50-VLOOKUP(AA50,quincenal,1))*VLOOKUP(AA50,quincenal,3)+VLOOKUP(AA50,quincenal,2)-VLOOKUP(AA50,subquincenal,2),0) -> 61.408512 | AG50: =TRUNC(IF(AF50>0.01,AF50,0),2) -> 61.4 | AH50: =TRUNC(IF(AF50<0.01,-AF50,0),2) -> 0 | AI50: =AB50-AD50-AE50-AG50+AH50 -> 3109.87 | AJ50: =[2]PORTADA!$D$10 -> 1 | AL50: 27
A51: 25 | D51: PLASCENCIA GARCIA MIREYA ESMERALDA | E51: PAGM780607 | F51: PAGM780607MJCLRR03 | H51: OFICIAL AUX. DE REGISTRO CIVIL | P51: 15 | Q51: TARJETA | S51: 0 | T51: 0 | U51: =5183/30 -> 172.7666667 | V51: =TRUNC(U51*P51,2) -> 2591.5 | W51: =TRUNC(U51*P51*0.04,2) -> 103.66 | X51: =TRUNC(U51*0.07*P51,2) -> 181.4 | Y51: =S51 -> 0 | Z51: =TRUNC(X51+W51+(IF(Y51>519,519,Y51))+IF(R51=0,0,R51*U51),2) -> 285.06 | AA51: =TRUNC((IF(R51=0,P51*U51,(P51-R51)*U51))+(IF(Y51<519,0,Y51-519)),2)+T51 -> 2591.5 | AB51: =Z51+AA51 -> 2876.56 | AE51: 0 | AF51: =IF(U51>0.01,(AA51-VLOOKUP(AA51,quincenal,1))*VLOOKUP(AA51,quincenal,3)+VLOOKUP(AA51,quincenal,2)-VLOOKUP(AA51,subquincenal,2),0) -> 17.522112 | AG51: =TRUNC(IF(AF51>0.01,AF51,0),2) -> 17.52 | AH51: =TRUNC(IF(AF51<0.01,-AF51,0),2) -> 0 | AI51: =AB51-AD51-AE51-AG51+AH51 -> 2859.04 | AJ51: =[2]PORTADA!$D$10 -> 1 | AL51: 28
D52: DIRECCION DE REGISTRO CIVIL | V52: =SUM(V50:V51) -> 5448.5 | W52: 217.94 | X52: 381.39 | Y52: 0 | Z52: 599.33 | AA52: 5448.5 | AB52: 6047.83 | AC52: 0 | AD52: 0 | AE52: 0 | AF52: 78.930624 | AG52: 78.92 | AH52: 0 | AI52: 5968.91
D54: OFICIALIA MAYOR DE CULTURA
A55: 26 | D55: GONZALEZ PEÑA LETICIA | E55: MAM620222 | H55: DIRECTOR DE CULTURA Y TURISMO | P55: 15 | Q55: TARJETA | S55: 0 | T55: 0 | U55: =10341/30 -> 344.7 | V55: =TRUNC(U55*P55,2) -> 5170.5 | W55: =TRUNC(U55*P55*0.04,2) -> 206.82 | X55: =TRUNC(U55*0.07*P55,2) -> 361.93 | Y55: =S55 -> 0 | Z55: =TRUNC(X55+W55+(IF(Y55>519,519,Y55))+IF(R55=0,0,R55*U55),2) -> 568.75 | AA55: =TRUNC((IF(R55=0,P55*U55,(P55-R55)*U55))+(IF(Y55<519,0,Y55-519)),2)+T55 -> 5170.5 | AB55: =Z55+AA55 -> 5739.25 | AE55: 0 | AF55: =IF(U55>0.01,(AA55-VLOOKUP(AA55,quincenal,1))*VLOOKUP(AA55,quincenal,3)+VLOOKUP(AA55,quincenal,2)-VLOOKUP(AA55,subquincenal,2),0) -> 557.229624 | AG55: =TRUNC(IF(AF55>0.01,AF55,0),2) -> 557.22 | AH55: =TRUNC(IF(AF55<0.01,-AF55,0),2) -> 0 | AI55: =AB55-AD55-AE55-AG55+AH55 -> 5182.03 | AJ55: =[3]PORTADA!$D$10 -> 1 | AL55: 31
A56: 27 | D56: PARRA RON CARLOS ENRIQUE | E56: PARC480708 | F56: PARC480708HJCRNR08 | G56: 2004-01-01 | H56: CRONISTA | P56: 15 | Q56: TARJETA | S56: 0 | T56: 0 | U56: =7203/30 -> 240.1 | V56: 3601.5 | W56: 144.06 | X56: 252.1 | Y56: 0 | Z56: 396.16 | AA56: 3601.5 | AB56: 3997.66 | AE56: 0 | AF56: =IF(U56>0.01,(AA56-VLOOKUP(AA56,quincenal,1))*VLOOKUP(AA56,quincenal,3)+VLOOKUP(AA56,quincenal,2)-VLOOKUP(AA56,subquincenal,2),0) -> 180.360112 | AG56: 180.36 | AH56: 0 | AI56: 3817.3 | AJ56: =[2]PORTADA!$D$10 -> 1 | AL56: 32
A57: 28 | D57: GONZALEZ JUAREZ ALEJANDRA AMANDA | H57: SECRETARIA DE CASA DE LA CULTURA | P57: 15 | Q57: TARJETA | S57: 0 | T57: 0 | U57: =4615/30 -> 153.8333333 | V57: =TRUNC(U57*P57,2) -> 2307.5 | W57: =TRUNC(U57*P57*0.04,2) -> 92.3 | X57: =TRUNC(U57*0.07*P57,2) -> 161.52 | Y57: =S57 -> 0 | Z57: =TRUNC(X57+W57+(IF(Y57>519,519,Y57))+IF(R57=0,0,R57*U57),2) -> 253.82 | AA57: =TRUNC((IF(R57=0,P57*U57,(P57-R57)*U57))+(IF(Y57<519,0,Y57-519)),2)+T57 -> 2307.5 | AB57: =Z57+AA57 -> 2561.32 | AF57: =IF(U57>0.01,(AA57-VLOOKUP(AA57,quincenal,1))*VLOOKUP(AA57,quincenal,3)+VLOOKUP(AA57,quincenal,2)-VLOOKUP(AA57,subquincenal,2),0) -> -27.777088 | AG57: 0 | AH57: 27.77 | AI57: =AB57-AD57-AE57-AG57+AH57 -> 2589.09 | AL57: 33
A58: 29 | D58: ARCINIEGA RODRIGUEZ ANTONIO | H58: ENCARGADO DE EQUIPO DE SONIDO | P58: 15 | Q58: TARJETA | S58: 0 | T58: 0 | U58: =8445/30 -> 281.5 | V58: 4222.5 | W58: 168.9 | X58: 295.57 | Y58: 0 | Z58: 464.47 | AA58: 4222.5 | AB58: 4686.97 | AE58: 0 | AF58: =IF(U58>0.01,(AA58-VLOOKUP(AA58,quincenal,1))*VLOOKUP(AA58,quincenal,3)+VLOOKUP(AA58,quincenal,2)-VLOOKUP(AA58,subquincenal,2),0) -> 384.6884 | AG58: 384.68 | AH58: 0 | AI58: 4302.29 | AJ58: =[2]PORTADA!$D$10 -> 1 | AL58: 37
D59: OFICIALIA MAYOR DE CULTURA | V59: =SUM(V55:V58) -> 15302 | W59: 612.08 | X59: 1071.12 | Y59: 0 | Z59: 1683.2 | AA59: 15302 | AB59: 16985.2 | AC59: 0 | AD59: 0 | AE59: 0 | AF59: 1094.501048 | AG59: 1122.26 | AH59: 27.77 | AI59: 15890.71
D61: DEPARTAMENTO DE COMUNICACIÓN SOCIAL
A62: 30 | B62: 1 | C62: 19 | D62: DIAZ PEREZ SAMUEL | H62: DIRECTOR DE PRENSA Y PUBLICIDAD | P62: 15 | Q62: TARJETA | S62: 0 | T62: 0 | U62: =12653/30 -> 421.7666667 | V62: =TRUNC(U62*P62,2) -> 6326.5 | W62: =TRUNC(U62*P62*0.04,2) -> 253.06 | X62: =TRUNC(U62*0.07*P62,2) -> 442.85 | Y62: =S62 -> 0 | Z62: =TRUNC(X62+W62+(IF(Y62>519,519,Y62))+IF(R62=0,0,R62*U62),2) -> 695.91 | AA62: =TRUNC((IF(R62=0,P62*U62,(P62-R62)*U62))+(IF(Y62<519,0,Y62-519)),2)+T62 -> 6326.5 | AB62: =Z62+AA62 -> 7022.41 | AE62: 0 | AF62: =IF(U62>0.01,(AA62-VLOOKUP(AA62,quincenal,1))*VLOOKUP(AA62,quincenal,3)+VLOOKUP(AA62,quincenal,2)-VLOOKUP(AA62,subquincenal,2),0) -> 804.151224 | AG62: =TRUNC(IF(AF62>0.01,AF62,0),2) -> 804.15 | AH62: =TRUNC(IF(AF62<0.01,-AF62,0),2) -> 0 | AI62: =AB62-AD62-AE62-AG62+AH62 -> 6218.26 | AJ62: =#REF! ->  | AL62: 38
D63: DEPARTAMENTO DE COMUNICACIÓN SOCIAL | V63: =SUM(V62:V62) -> 6326.5 | W63: 253.06 | X63: 442.85 | Y63: 0 | Z63: 695.91 | AA63: 6326.5 | AB63: 7022.41 | AC63: 0 | AD63: 0 | AE63: 0 | AF63: 804.151224 | AG63: 804.15 | AH63: 0 | AI63: 6218.26
D65: DIRECCION DE EDUCACION
A66: 31 | D66: MARISCAL MORALES ILIANA PATRICIA | H66: SUBDIRECTORA DE TALLERES DE CAPACITACION | P66: 15 | Q66: TARJETA | S66: 0 | T66: 0 | U66: =6795/30 -> 226.5 | V66: =TRUNC(U66*P66,2) -> 3397.5 | W66: =TRUNC(U66*P66*0.04,2) -> 135.9 | X66: =TRUNC(U66*0.07*P66,2) -> 237.82 | Y66: =S66 -> 0 | Z66: =TRUNC(X66+W66+(IF(Y66>519,519,Y66))+IF(R66=0,0,R66*U66),2) -> 373.72 | AA66: =TRUNC((IF(R66=0,P66*U66,(P66-R66)*U66))+(IF(Y66<519,0,Y66-519)),2)+T66 -> 3397.5 | AB66: =Z66+AA66 -> 3771.22 | AE66: 0 | AF66: =IF(U66>0.01,(AA66-VLOOKUP(AA66,quincenal,1))*VLOOKUP(AA66,quincenal,3)+VLOOKUP(AA66,quincenal,2)-VLOOKUP(AA66,subquincenal,2),0) -> 140.464912 | AG66: =TRUNC(IF(AF66>0.01,AF66,0),2) -> 140.46 | AH66: =TRUNC(IF(AF66<0.01,-AF66,0),2) -> 0 | AI66: =AB66-AD66-AE66-AG66+AH66 -> 3630.76 | AL66: 41
A67: 32 | D67: ESPERICUETA HERNANDEZ EFRAIN | H67: DIRECTOR DE TALLERES DE CAPACITACION | P67: 15 | Q67: TARJETA | S67: 0 | T67: 0 | U67: =8121/30 -> 270.7 | V67: =TRUNC(U67*P67,2) -> 4060.5 | W67: =TRUNC(U67*P67*0.04,2) -> 162.42 | X67: =TRUNC(U67*0.07*P67,2) -> 284.23 | Y67: =S67 -> 0 | Z67: =TRUNC(X67+W67+(IF(Y67>519,519,Y67))+IF(R67=0,0,R67*U67),2) -> 446.65 | AA67: =TRUNC((IF(R67=0,P67*U67,(P67-R67)*U67))+(IF(Y67<519,0,Y67-519)),2)+T67 -> 4060.5 | AB67: =Z67+AA67 -> 4507.15 | AE67: 0 | AF67: =IF(U67>0.01,(AA67-VLOOKUP(AA67,quincenal,1))*VLOOKUP(AA67,quincenal,3)+VLOOKUP(AA67,quincenal,2)-VLOOKUP(AA67,subquincenal,2),0) -> 358.7684 | AG67: =TRUNC(IF(AF67>0.01,AF67,0),2) -> 358.76 | AH67: =TRUNC(IF(AF67<0.01,-AF67,0),2) -> 0 | AI67: =AB67-AD67-AE67-AG67+AH67 -> 4148.39 | AL67: 42
A68: 33 | D68: MADRID ZAINES DELIA CAROLINA | H68: SECRETARIA DE DIRECTOR DE EDUCACION | P68: 15 | Q68: TARJETA | S68: 0 | T68: 0 | U68: =5714/30 -> 190.4666667 | V68: =TRUNC(U68*P68,2) -> 2857 | W68: =TRUNC(U68*P68*0.04,2) -> 114.28 | X68: =TRUNC(U68*0.07*P68,2) -> 199.99 | Y68: =S68 -> 0 | Z68: =TRUNC(X68+W68+(IF(Y68>519,519,Y68))+IF(R68=0,0,R68*U68),2) -> 314.27 | AA68: =TRUNC((IF(R68=0,P68*U68,(P68-R68)*U68))+(IF(Y68<519,0,Y68-519)),2)+T68 -> 2857 | AB68: =Z68+AA68 -> 3171.27 | AE68: 0 | AF68: =IF(U68>0.01,(AA68-VLOOKUP(AA68,quincenal,1))*VLOOKUP(AA68,quincenal,3)+VLOOKUP(AA68,quincenal,2)-VLOOKUP(AA68,subquincenal,2),0) -> 61.408512 | AG68: =TRUNC(IF(AF68>0.01,AF68,0),2) -> 61.4 | AH68: =TRUNC(IF(AF68<0.01,-AF68,0),2) -> 0 | AI68: =AB68-AD68-AE68-AG68+AH68 -> 3109.87 | AL68: 43
A69: 34 | D69: GAVILANES NAVARRO JOSE RICARDO | H69: CHIOFER CAMION ESTUDIANTES | P69: 15 | Q69: TARJETA | S69: 0 | T69: 0 | U69: 260.287 | V69: =TRUNC(U69*P69,2) -> 3904.3 | W69: =TRUNC(U69*P69*0.04,2) -> 156.17 | X69: =TRUNC(U69*0.07*P69,2) -> 273.3 | Y69: =S69 -> 0 | Z69: =TRUNC(X69+W69+(IF(Y69>519,519,Y69))+IF(R69=0,0,R69*U69),2) -> 429.47 | AA69: =TRUNC((IF(R69=0,P69*U69,(P69-R69)*U69))+(IF(Y69<519,0,Y69-519)),2)+T69 -> 3904.3 | AB69: =Z69+AA69 -> 4333.77 | AE69: 0 | AF69: =IF(U69>0.01,(AA69-VLOOKUP(AA69,quincenal,1))*VLOOKUP(AA69,quincenal,3)+VLOOKUP(AA69,quincenal,2)-VLOOKUP(AA69,subquincenal,2),0) -> 333.7764 | AG69: =TRUNC(IF(AF69>0.01,AF69,0),2) -> 333.77 | AH69: =TRUNC(IF(AF69<0.01,-AF69,0),2) -> 0 | AI69: =AB69-AD69-AE69-AG69+AH69 -> 4000 | AJ69: =#REF! ->  | AL69: 44
D70: DIRECCION DE EDUCACION | V70: =SUM(V66:V69) -> 14219.3 | W70: =SUM(W66:W69) -> 568.77 | X70: 995.34 | Y70: 0 | Z70: 1564.11 | AA70: 14219.3 | AB70: 15783.41 | AC70: 0 | AD70: 0 | AE70: 0 | AF70: 894.418224 | AG70: 894.39 | AH70: 0 | AI70: 14889.02
D72: DEPARTAMENTO DE PROMOCION Y DESARROLLO ECONOMICO
A73: 35 | D73: RODRIGUEZ ARQUIETA FAUSTO RAFAEL | H73: DIRECTOR | P73: 15 | Q73: TARJETA | S73: 0 | T73: 0 | U73: =14973/30 -> 499.1 | V73: =TRUNC(U73*P73,2) -> 7486.5 | W73: =TRUNC(U73*P73*0.04,2) -> 299.46 | X73: =TRUNC(U73*0.07*P73,2) -> 524.05 | Y73: =S73 -> 0 | Z73: =TRUNC(X73+W73+(IF(Y73>519,519,Y73))+IF(R73=0,0,R73*U73),2) -> 823.51 | AA73: =TRUNC((IF(R73=0,P73*U73,(P73-R73)*U73))+(IF(Y73<519,0,Y73-519)),2)+T73 -> 7486.5 | AB73: =Z73+AA73 -> 8310.01 | AE73: 0 | AF73: =IF(U73>0.01,(AA73-VLOOKUP(AA73,quincenal,1))*VLOOKUP(AA73,quincenal,3)+VLOOKUP(AA73,quincenal,2)-VLOOKUP(AA73,subquincenal,2),0) -> 1051.927224 | AG73: =TRUNC(IF(AF73>0.01,AF73,0),2) -> 1051.92 | AH73: =TRUNC(IF(AF73<0.01,-AF73,0),2) -> 0 | AI73: =AB73-AD73-AE73-AG73+AH73 -> 7258.09 | AL73: 45
A74: 36 | D74: HERNANDEZ ENRIQUEZ J. FILEMON | H74: DIRECTOR DE PROMOCION ECONOMICA | P74: 15 | Q74: TARJETA | S74: 0 | T74: 0 | U74: =13813/30 -> 460.4333333 | V74: 6906.5 | W74: 276.26 | X74: 483.45 | Y74: 0 | Z74: 759.71 | AA74: 6906.5 | AB74: 7666.21 | AE74: 0 | AF74: 928.039224 | AG74: 928.03 | AH74: =TRUNC(IF(AF74<0.01,-AF74,0),2) -> 0 | AI74: 6738.18 | AL74: 46
A75: 37 | D75: PLASCENCIA GARCIA OSCARI | E75: PAGO721112 | F75: PAGO721112HJCLRS01 | H75: AUXILIAR ADMINISTRATIVO DE PROMOCION ECONOMICA | P75: 15 | Q75: TARJETA | S75: 0 | T75: 0 | U75: =6419/30 -> 213.9666667 | V75: 3209.5 | W75: 128.38 | X75: 224.66 | Y75: 0 | Z75: 353.04 | AA75: 3209.5 | AB75: 3562.54 | AE75: 0 | AF75: 120.010512 | AG75: 120.01 | AH75: =TRUNC(IF(AF75<0.01,-AF75,0),2) -> 0 | AI75: 3442.53 | AL75: 47
A76: =A75+1 -> 38 | D76: ULLOA MARTINEZ MARCELA GUADALUPE | E76: UOMM730612 | F76: UOMM730612MJCLRR02 | G76: 1998-01-01 | H76: AUXILIAR ADMINISTRATIVO | P76: 15 | Q76: TARJETA | S76: 0 | T76: 0 | U76: =6783/30 -> 226.1 | V76: 3391.5 | W76: 135.66 | X76: 237.4 | Y76: 0 | Z76: 373.06 | AA76: 3391.5 | AB76: 3764.56 | AE76: 0 | AF76: 139.812112 | AG76: 139.81 | AH76: =TRUNC(IF(AF76<0.01,-AF76,0),2) -> 0 | AI76: 3624.75 | AJ76: =[2]PORTADA!$D$10 -> 1 | AL76: 49
D77: DEPARTAMENTO DE PROMOCION Y DESARROLLO ECONOMICO | V77: =SUM(V73:V76) -> 20994 | W77: 839.76 | X77: 1469.56 | Y77: 0 | Z77: 2309.32 | AA77: 20994 | AB77: 23303.32 | AC77: 0 | AD77: 0 | AE77: 0 | AF77: 2239.789072 | AG77: 2239.77 | AH77: 0 | AI77: 21063.55
D79: OFICINA DE ENLACE RELACIONES EXTERIORES
A80: =A76+1 -> 39 | D80: GUTIERREZ REYES CAROL | E80: GURC680410 | F80: GURC680410MJCTYR00 | G80: 2001-01-02 | H80: JEFE ADMINISTRADOR | P80: 15 | Q80: TARJETA | S80: 0 | T80: 0 | U80: =11550/30 -> 385 | V80: =TRUNC(U80*P80,2) -> 5775 | W80: =TRUNC(U80*P80*0.04,2) -> 231 | X80: =TRUNC(U80*0.07*P80,2) -> 404.25 | Y80: =S80 -> 0 | Z80: =TRUNC(X80+W80+(IF(Y80>519,519,Y80))+IF(R80=0,0,R80*U80),2) -> 635.25 | AA80: =TRUNC((IF(R80=0,P80*U80,(P80-R80)*U80))+(IF(Y80<519,0,Y80-519)),2)+T80 -> 5775 | AB80: =Z80+AA80 -> 6410.25 | AE80: 0 | AF80: =IF(U80>0.01,(AA80-VLOOKUP(AA80,quincenal,1))*VLOOKUP(AA80,quincenal,3)+VLOOKUP(AA80,quincenal,2)-VLOOKUP(AA80,subquincenal,2),0) -> 686.350824 | AG80: =TRUNC(IF(AF80>0.01,AF80,0),2) -> 686.35 | AH80: =TRUNC(IF(AF80<0.01,-AF80,0),2) -> 0 | AI80: =AB80-AD80-AE80-AG80+AH80 -> 5723.9 | AJ80: =[2]PORTADA!$D$10 -> 1 | AL80: 51
A81: =A80+1 -> 40 | D81: FREGOSO HURTADO ALEJANDRA | E81: FEHA831218 | F81: FEHA831218MJCRRL07 | G81: 2007-04-10 | H81: AUX. ADMINISTRATIVO | P81: 15 | Q81: TARJETA | S81: 0 | T81: 0 | U81: =6609/30 -> 220.3 | V81: =TRUNC(U81*P81,2) -> 3304.5 | W81: =TRUNC(U81*P81*0.04,2) -> 132.18 | X81: =TRUNC(U81*0.07*P81,2) -> 231.31 | Y81: =S81 -> 0 | Z81: =TRUNC(X81+W81+(IF(Y81>519,519,Y81))+IF(R81=0,0,R81*U81),2) -> 363.49 | AA81: =TRUNC((IF(R81=0,P81*U81,(P81-R81)*U81))+(IF(Y81<519,0,Y81-519)),2)+T81 -> 3304.5 | AB81: =Z81+AA81 -> 3667.99 | AE81: 0 | AF81: =IF(U81>0.01,(AA81-VLOOKUP(AA81,quincenal,1))*VLOOKUP(AA81,quincenal,3)+VLOOKUP(AA81,quincenal,2)-VLOOKUP(AA81,subquincenal,2),0) -> 130.346512 | AG81: =TRUNC(IF(AF81>0.01,AF81,0),2) -> 130.34 | AH81: =TRUNC(IF(AF81<0.01,-AF81,0),2) -> 0 | AI81: =AB81-AD81-AE81-AG81+AH81 -> 3537.65 | AJ81: =[2]PORTADA!$D$10 -> 1 | AL81: 52
A82: =A81+1 -> 41 | D82: LOPEZ MARTINEZ YVETTE AMALIA MARGARITA | E82: LOMY681017 | F82: LOMY681017MJCPRV08 | G82: 2001-01-01 | H82: SUPERVISOR | P82: 15 | Q82: TARJETA | S82: 0 | T82: 0 | U82: =6609/30 -> 220.3 | V82: =TRUNC(U82*P82,2) -> 3304.5 | W82: =TRUNC(U82*P82*0.04,2) -> 132.18 | X82: =TRUNC(U82*0.07*P82,2) -> 231.31 | Y82: =S82 -> 0 | Z82: =TRUNC(X82+W82+(IF(Y82>519,519,Y82))+IF(R82=0,0,R82*U82),2) -> 363.49 | AA82: =TRUNC((IF(R82=0,P82*U82,(P82-R82)*U82))+(IF(Y82<519,0,Y82-519)),2)+T82 -> 3304.5 | AB82: =Z82+AA82 -> 3667.99 | AE82: 0 | AF82: =IF(U82>0.01,(AA82-VLOOKUP(AA82,quincenal,1))*VLOOKUP(AA82,quincenal,3)+VLOOKUP(AA82,quincenal,2)-VLOOKUP(AA82,subquincenal,2),0) -> 130.346512 | AG82: =TRUNC(IF(AF82>0.01,AF82,0),2) -> 130.34 | AH82: =TRUNC(IF(AF82<0.01,-AF82,0),2) -> 0 | AI82: =AB82-AD82-AE82-AG82+AH82 -> 3537.65 | AJ82: =[2]PORTADA!$D$10 -> 1 | AL82: 53
A83: 42 | D83: ESTRADA GOMEZ JUAN CARLOS | E83: EAGJ510220NR1 | F83: EAGJ510220HJCSMN09 | H83: MENSAJERO | P83: 15 | Q83: TARJETA | S83: 0 | T83: 0 | U83: =6762/30 -> 225.4 | V83: =TRUNC(U83*P83,2) -> 3381 | W83: =TRUNC(U83*P83*0.04,2) -> 135.24 | X83: =TRUNC(U83*0.07*P83,2) -> 236.67 | Y83: =S83 -> 0 | Z83: =TRUNC(X83+W83+(IF(Y83>519,519,Y83))+IF(R83=0,0,R83*U83),2) -> 371.91 | AA83: =TRUNC((IF(R83=0,P83*U83,(P83-R83)*U83))+(IF(Y83<519,0,Y83-519)),2)+T83 -> 3381 | AB83: =Z83+AA83 -> 3752.91 | AD83: 0 | AE83: 0 | AF83: =IF(U83>0.01,(AA83-VLOOKUP(AA83,quincenal,1))*VLOOKUP(AA83,quincenal,3)+VLOOKUP(AA83,quincenal,2)-VLOOKUP(AA83,subquincenal,2),0) -> 138.669712 | AG83: =TRUNC(IF(AF83>0.01,AF83,0),2) -> 138.66 | AH83: =TRUNC(IF(AF83<0.01,-AF83,0),2) -> 0 | AI83: =AB83-AD83-AE83-AG83+AH83 -> 3614.25 | AJ83: =[2]PORTADA!$D$10 -> 1 | AL83: 54
D84: OFICINA DE ENLACE RELACIONES EXTERIORES | V84: =SUM(V80:V83) -> 15765 | W84: 630.6 | X84: 1103.54 | Y84: 0 | Z84: 1734.14 | AA84: 15765 | AB84: 17499.14 | AC84: 0 | AD84: 0 | AE84: 0 | AF84: 1085.71356 | AG84: 1085.69 | AH84: 0 | AI84: 16413.45
D86: AGENCIAS MUNICIPALES
A87: =A83+1 -> 43 | B87: 2 | C87: 2 | D87: GOMEZ HERNANDEZ FRANCISCO JAVIER | H87: AGENTE MUNICIPAL STA. ROSALIA | P87: 15 | Q87: TARJETA | S87: 0 | T87: 0 | U87: =3158/30 -> 105.2666667 | V87: =TRUNC(U87*P87,2) -> 1579 | W87: =TRUNC(U87*P87*0.04,2) -> 63.16 | X87: =TRUNC(U87*0.07*P87,2) -> 110.53 | Y87: =S87 -> 0 | Z87: =TRUNC(X87+W87+(IF(Y87>519,519,Y87))+IF(R87=0,0,R87*U87),2) -> 173.69 | AA87: =TRUNC((IF(R87=0,P87*U87,(P87-R87)*U87))+(IF(Y87<519,0,Y87-519)),2)+T87 -> 1579 | AB87: =Z87+AA87 -> 1752.69 | AE87: 0 | AF87: =IF(U87>0.01,(AA87-VLOOKUP(AA87,quincenal,1))*VLOOKUP(AA87,quincenal,3)+VLOOKUP(AA87,quincenal,2)-VLOOKUP(AA87,subquincenal,2),0) -> -110.66184 | AG87: =TRUNC(IF(AF87>0.01,AF87,0),2) -> 0 | AH87: =TRUNC(IF(AF87<0.01,-AF87,0),2) -> 110.66 | AI87: =AB87-AD87-AE87-AG87+AH87 -> 1863.35 | AJ87: =#REF! ->  | AL87: 55
A88: =A87+1 -> 44 | B88: 2 | C88: 2 | D88: BERNAL LOPEZ JUAN MANUEL | E88: PALR | H88: AGENTE MUNICIPAL SAN RAFAEL | P88: 15 | Q88: TARJETA | S88: 0 | T88: 0 | U88: =2562/30 -> 85.4 | V88: 1281 | W88: 51.24 | X88: 89.67 | Y88: 0 | Z88: 140.91 | AA88: 1281 | AB88: 1421.91 | AE88: 0 | AF88: -129.73384 | AG88: =TRUNC(IF(AF88>0.01,AF88,0),2) -> 0 | AH88: =TRUNC(IF(AF88<0.01,-AF88,0),2) -> 129.73 | AI88: 1551.64 | AJ88: =#REF! ->  | AL88: 56
A89: =A88+1 -> 45 | B89: 2 | C89: 2 | D89: GONZALEZ RUIZ JOSE ANGEL | E89: GORA710130M39 | F89: GORA710130HJCNZN08 | H89: AGENTE MUNICIPAL SAN SEBASTIAN | P89: 15 | Q89: TARJETA | S89: 0 | T89: 0 | U89: =2363/30 -> 78.76666667 | V89: 1181.5 | W89: 47.26 | X89: 82.7 | Y89: 0 | Z89: 129.96 | AA89: 1181.5 | AB89: 1311.46 | AE89: 0 | AF89: -136.10184 | AG89: =TRUNC(IF(AF89>0.01,AF89,0),2) -> 0 | AH89: =TRUNC(IF(AF89<0.01,-AF89,0),2) -> 136.1 | AI89: 1447.56 | AJ89: =#REF! ->  | AL89: 57
A90: 46 | B90: 2 | C90: 2 | D90: SIERRA LLAMAS JUAN JOSE | E90: SILJ660418 | F90: SILJ660418HJCRLN17 | H90: AGENTE MUNICIPAL DE PUERTA DE PERICOS | P90: 15 | Q90: TARJETA | S90: 0 | T90: 0 | U90: =2761/30 -> 92.03333333 | V90: 1380.5 | W90: 55.22 | X90: 96.63 | Y90: 0 | Z90: 151.85 | AA90: 1380.5 | AB90: 1532.35 | AE90: 0 | AF90: -123.36584 | AG90: =TRUNC(IF(AF90>0.01,AF90,0),2) -> 0 | AH90: =TRUNC(IF(AF90<0.01,-AF90,0),2) -> 123.36 | AI90: 1655.71 | AJ90: =#REF! ->  | AL90: 58
A91: 47 | D91: NAVARRO AYON RAUL JAIME | H91: AGENTE MUNICIPAL DE LA MAZATA | P91: 15 | Q91: TARJETA | S91: 0 | T91: 0 | U91: =2562/30 -> 85.4 | V91: =TRUNC(U91*P91,2) -> 1281 | W91: =TRUNC(U91*P91*0.04,2) -> 51.24 | X91: =TRUNC(U91*0.07*P91,2) -> 89.67 | Y91: =S91 -> 0 | Z91: =TRUNC(X91+W91+(IF(Y91>519,519,Y91))+IF(R91=0,0,R91*U91),2) -> 140.91 | AA91: =TRUNC((IF(R91=0,P91*U91,(P91-R91)*U91))+(IF(Y91<519,0,Y91-519)),2)+T91 -> 1281 | AB91: =Z91+AA91 -> 1421.91 | AD91: 500 | AE91: 0 | AF91: =IF(U91>0.01,(AA91-VLOOKUP(AA91,quincenal,1))*VLOOKUP(AA91,quincenal,3)+VLOOKUP(AA91,quincenal,2)-VLOOKUP(AA91,subquincenal,2),0) -> -129.73384 | AG91: 0 | AH91: 129.73 | AI91: =AB91-AD91-AE91-AG91+AH91 -> 1051.64 | AL91: 59
A92: 48 | D92: PEREZ LLAMAS SAMUEL | H92: AGENTE MUNICIPAL DE LA QUEBRADA | P92: 15 | Q92: TARJETA | S92: 0 | T92: 0 | U92: =3556/30 -> 118.5333333 | V92: 1778 | W92: 71.12 | X92: 124.46 | Y92: 0 | Z92: 195.58 | AA92: 1778 | AB92: 1973.58 | AE92: 0 | AF92: -85.92584 | AG92: 0 | AH92: 85.92 | AI92: 2059.5 | AL92: 60
A93: 49 | D93: MURILLO HERNANDEZ MARIANO | H93: AGENTE MUNICIPAL DE LA EMBOCADA | P93: 15 | Q93: TARJETA | S93: 0 | T93: 0 | U93: =3556/30 -> 118.5333333 | V93: 1778 | W93: 71.12 | X93: 124.46 | Y93: 0 | Z93: 195.58 | AA93: 1778 | AB93: 1973.58 | AE93: 0 | AF93: -85.92584 | AG93: 0 | AH93: 85.92 | AI93: 2059.5
A94: 50 | D94: LOPEZ SILVA CARLOS DAMIAN | E94: GOHV780710 | F94: GOHV780710HJCMRL00 | G94: 2007-02-01 | H94: CHOFER RECOLECTOR | P94: 15 | Q94: TARJETA | S94: 0 | T94: 0 | U94: =5262/30 -> 175.4 | V94: =TRUNC(U94*P94,2) -> 2631 | W94: =TRUNC(U94*P94*0.04,2) -> 105.24 | X94: =TRUNC(U94*0.07*P94,2) -> 184.17 | Y94: =S94 -> 0 | Z94: =TRUNC(X94+W94+(IF(Y94>519,519,Y94))+IF(R94=0,0,R94*U94),2) -> 289.41 | AA94: =TRUNC((IF(R94=0,P94*U94,(P94-R94)*U94))+(IF(Y94<519,0,Y94-519)),2)+T94 -> 2631 | AB94: =Z94+AA94 -> 2920.41 | AE94: 0 | AF94: =IF(U94>0.01,(AA94-VLOOKUP(AA94,quincenal,1))*VLOOKUP(AA94,quincenal,3)+VLOOKUP(AA94,quincenal,2)-VLOOKUP(AA94,subquincenal,2),0) -> 21.819712 | AG94: =TRUNC(IF(AF94>0.01,AF94,0),2) -> 21.81 | AH94: =TRUNC(IF(AF94<0.01,-AF94,0),2) -> 0 | AI94: =AB94-AD94-AE94-AG94+AH94 -> 2898.6 | AJ94: =[2]PORTADA!$D$10 -> 1 | AL94: 62
D95: AGENCIAS MUNICIPALES | V95: =SUM(V87:V94) -> 12890 | W95: 515.6 | X95: 902.29 | Y95: 0 | Z95: 1417.89 | AA95: 12890 | AB95: 14307.89 | AC95: 0 | AD95: 500 | AE95: 0 | AF95: -779.629168 | AG95: 21.81 | AH95: 801.42 | AI95: 14587.5
D97: ADMIN ISTRACION DE LA HACIENDA MUNICIPAL
A98: =A94+1 -> 51 | B98: 3 | C98: 1 | D98: CAMARENA GONZALEZ RUBIO MARIO | H98: ENCARGADO DE HACIENDA PUBLICA | P98: 15 | Q98: TARJETA | S98: 0 | T98: 0 | U98: =17378/30 -> 579.2666667 | V98: =TRUNC(U98*P98,2) -> 8689 | W98: =TRUNC(U98*P98*0.04,2) -> 347.56 | X98: =TRUNC(U98*0.07*P98,2) -> 608.23 | Y98: =S98 -> 0 | Z98: =TRUNC(X98+W98+(IF(Y98>519,519,Y98))+IF(R98=0,0,R98*U98),2) -> 955.79 | AA98: =TRUNC((IF(R98=0,P98*U98,(P98-R98)*U98))+(IF(Y98<519,0,Y98-519)),2)+T98 -> 8689 | AB98: =Z98+AA98 -> 9644.79 | AE98: 0 | AF98: =IF(U98>0.01,(AA98-VLOOKUP(AA98,quincenal,1))*VLOOKUP(AA98,quincenal,3)+VLOOKUP(AA98,quincenal,2)-VLOOKUP(AA98,subquincenal,2),0) -> 1308.781224 | AG98: =TRUNC(IF(AF98>0.01,AF98,0),2) -> 1308.78 | AH98: =TRUNC(IF(AF98<0.01,-AF98,0),2) -> 0 | AI98: =AB98-AD98-AE98-AG98+AH98 -> 8336.01 | AJ98: =#REF! ->  | AL98: 63
A99: =A98+1 -> 52 | D99: PEREZ JAIME ARTURO | E99: PEJA600718 | F99: PEXJ600718HJCRXM09 | G99: 2009-01-05 | H99: AUXILIAR CONTABLE | P99: 15 | Q99: TARJETA | S99: 0 | T99: 0 | U99: =10812/30 -> 360.4 | V99: =TRUNC(U99*P99,2) -> 5406 | W99: =TRUNC(U99*P99*0.04,2) -> 216.24 | X99: =TRUNC(U99*0.07*P99,2) -> 378.42 | Y99: =S99 -> 0 | Z99: =TRUNC(X99+W99+(IF(Y99>519,519,Y99))+IF(R99=0,0,R99*U99),2) -> 594.66 | AA99: =TRUNC((IF(R99=0,P99*U99,(P99-R99)*U99))+(IF(Y99<519,0,Y99-519)),2)+T99 -> 5406 | AB99: =Z99+AA99 -> 6000.66 | AE99: 0 | AF99: =IF(U99>0.01,(AA99-VLOOKUP(AA99,quincenal,1))*VLOOKUP(AA99,quincenal,3)+VLOOKUP(AA99,quincenal,2)-VLOOKUP(AA99,subquincenal,2),0) -> 607.532424 | AG99: =TRUNC(IF(AF99>0.01,AF99,0),2) -> 607.53 | AH99: =TRUNC(IF(AF99<0.01,-AF99,0),2) -> 0 | AI99: =AB99-AD99-AE99-AG99+AH99 -> 5393.13 | AL99: 64
A100: =A99+1 -> 53 | D100: VALENZUELA PARRA PERLA PATRICIA | H100: SECRETARIA | P100: 15 | Q100: TARJETA | S100: 0 | T100: 0 | U100: =4598/30 -> 153.2666667 | V100: =TRUNC(U100*P100,2) -> 2299 | W100: =TRUNC(U100*P100*0.04,2) -> 91.96 | X100: =TRUNC(U100*0.07*P100,2) -> 160.93 | Y100: =S100 -> 0 | Z100: =TRUNC(X100+W100+(IF(Y100>519,519,Y100))+IF(R100=0,0,R100*U100),2) -> 252.89 | AA100: =TRUNC((IF(R100=0,P100*U100,(P100-R100)*U100))+(IF(Y100<519,0,Y100-519)),2)+T100 -> 2299 | AB100: =Z100+AA100 -> 2551.89 | AE100: 0 | AF100: =IF(U100>0.01,(AA100-VLOOKUP(AA100,quincenal,1))*VLOOKUP(AA100,quincenal,3)+VLOOKUP(AA100,quincenal,2)-VLOOKUP(AA100,subquincenal,2),0) -> -28.701888 | AG100: =TRUNC(IF(AF100>0.01,AF100,0),2) -> 0 | AH100: =TRUNC(IF(AF100<0.01,-AF100,0),2) -> 28.7 | AI100: =AB100-AD100-AE100-AG100+AH100 -> 2580.59
A101: 54 | D101: ARQUIETA GONZALEZ IRENE MAGALI | H101: ENCARGADO DEL DEPTO DE ADQUISICIONES | P101: 15 | Q101: TARJETA | S101: 0 | T101: 0 | U101: =7195/30 -> 239.8333333 | V101: =TRUNC(U101*P101,2) -> 3597.5 | W101: =TRUNC(U101*P101*0.04,2) -> 143.9 | X101: =TRUNC(U101*0.07*P101,2) -> 251.82 | Y101: =S101 -> 0 | Z101: =TRUNC(X101+W101+(IF(Y101>519,519,Y101))+IF(R101=0,0,R101*U101),2) -> 395.72 | AA101: =TRUNC((IF(R101=0,P101*U101,(P101-R101)*U101))+(IF(Y101<519,0,Y101-519)),2)+T101 -> 3597.5 | AB101: =Z101+AA101 -> 3993.22 | AE101: 0 | AF101: =IF(U101>0.01,(AA101-VLOOKUP(AA101,quincenal,1))*VLOOKUP(AA101,quincenal,3)+VLOOKUP(AA101,quincenal,2)-VLOOKUP(AA101,subquincenal,2),0) -> 179.924912 | AG101: =TRUNC(IF(AF101>0.01,AF101,0),2) -> 179.92 | AH101: =TRUNC(IF(AF101<0.01,-AF101,0),2) -> 0 | AI101: =AB101-AD101-AE101-AG101+AH101 -> 3813.3 | AJ101: =#REF! ->  | AL101: 65
A102: 55 | D102: GOMEZ ESQUIVEL JULIO ISRAEL | H102: CAPTURISTA EN TESORERIA | P102: 15 | Q102: TARJETA | S102: 0 | T102: 0 | U102: =5015/30 -> 167.1666667 | V102: =TRUNC(U102*P102,2) -> 2507.5 | W102: =TRUNC(U102*P102*0.04,2) -> 100.3 | X102: =TRUNC(U102*0.07*P102,2) -> 175.52 | Y102: =S102 -> 0 | Z102: =TRUNC(X102+W102+(IF(Y102>519,519,Y102))+IF(R102=0,0,R102*U102),2) -> 275.82 | AA102: =TRUNC((IF(R102=0,P102*U102,(P102-R102)*U102))+(IF(Y102<519,0,Y102-519)),2)+T102 -> 2507.5 | AB102: =Z102+AA102 -> 2783.32 | AD102: 500 | AE102: 0 | AF102: =IF(U102>0.01,(AA102-VLOOKUP(AA102,quincenal,1))*VLOOKUP(AA102,quincenal,3)+VLOOKUP(AA102,quincenal,2)-VLOOKUP(AA102,subquincenal,2),0) -> 8.382912 | AG102: =TRUNC(IF(AF102>0.01,AF102,0),2) -> 8.38 | AH102: =TRUNC(IF(AF102<0.01,-AF102,0),2) -> 0 | AI102: =AB102-AD102-AE102-AG102+AH102 -> 2274.94 | AL102: 66
A103: 56 | D103: MARTINEZ PAREDES ANNA VERONICA | E103: MAPA820618 | F103: MAPA820618MJCRRN00 | G103: 2007-01-31 | H103: AUXILIAR CONTABLE | P103: 15 | Q103: TARJETA | S103: 0 | T103: 0 | U103: =9761/30 -> 325.3666667 | V103: =TRUNC(U103*P103,2) -> 4880.5 | W103: =TRUNC(U103*P103*0.04,2) -> 195.22 | X103: =TRUNC(U103*0.07*P103,2) -> 341.63 | Y103: =S103 -> 0 | Z103: =TRUNC(X103+W103+(IF(Y103>519,519,Y103))+IF(R103=0,0,R103*U103),2) -> 536.85 | AA103: =TRUNC((IF(R103=0,P103*U103,(P103-R103)*U103))+(IF(Y103<519,0,Y103-519)),2)+T103 -> 4880.5 | AB103: =Z103+AA103 -> 5417.35 | AE103: 0 | AF103: =IF(U103>0.01,(AA103-VLOOKUP(AA103,quincenal,1))*VLOOKUP(AA103,quincenal,3)+VLOOKUP(AA103,quincenal,2)-VLOOKUP(AA103,subquincenal,2),0) -> 502.091088 | AG103: =TRUNC(IF(AF103>0.01,AF103,0),2) -> 502.09 | AH103: =TRUNC(IF(AF103<0.01,-AF103,0),2) -> 0 | AI103: =AB103-AD103-AE103-AG103+AH103 -> 4915.26 | AJ103: =[2]PORTADA!$D$10 -> 1 | AL103: 67
D104: ADMIN ISTRACION DE LA HACIENDA MUNICIPAL | V104: =SUM(V98:V103) -> 27379.5 | W104: =SUM(W98:W103) -> 1095.18 | X104: 1916.55 | Y104: 0 | Z104: 3011.73 | AA104: 27379.5 | AB104: 30391.23 | AC104: 0 | AD104: 500 | AE104: 0 | AF104: 2578.010672 | AG104: 2606.7 | AH104: 28.7 | AI104: 27313.23
D106: DEPARTAMENTO DE INGRESOS
A107: =A103+1 -> 57 | B107: 11 | C107: 17 | D107: ARIAS RAMOS MARIA DEL SOCORRO | E107: AIRS650514 | F107: AIRS650514MJCRMC06 | H107: CAJERA | P107: 15 | Q107: TARJETA | S107: 0 | T107: 0 | U107: =6714/30 -> 223.8 | V107: =TRUNC(U107*P107,2) -> 3357 | W107: =TRUNC(U107*P107*0.04,2) -> 134.28 | X107: =TRUNC(U107*0.07*P107,2) -> 234.99 | Y107: =S107 -> 0 | Z107: =TRUNC(X107+W107+(IF(Y107>519,519,Y107))+IF(R107=0,0,R107*U107),2) -> 369.27 | AA107: =TRUNC((IF(R107=0,P107*U107,(P107-R107)*U107))+(IF(Y107<519,0,Y107-519)),2)+T107 -> 3357 | AB107: =Z107+AA107 -> 3726.27 | AE107: 0 | AF107: =IF(U107>0.01,(AA107-VLOOKUP(AA107,quincenal,1))*VLOOKUP(AA107,quincenal,3)+VLOOKUP(AA107,quincenal,2)-VLOOKUP(AA107,subquincenal,2),0) -> 136.058512 | AG107: =TRUNC(IF(AF107>0.01,AF107,0),2) -> 136.05 | AH107: =TRUNC(IF(AF107<0.01,-AF107,0),2) -> 0 | AI107: =AB107-AD107-AE107-AG107+AH107 -> 3590.22 | AJ107: =[2]PORTADA!$D$10 -> 1 | AL107: 68
A108: =A107+1 -> 58 | D108: CABRALES GONZALEZ JOSE MANUEL | E108: CAGM680912 | F108: CAGM680912HJCBNN06 | G108: 2007-01-01 | H108: RECAUDADOR DE PISO | P108: 15 | Q108: TARJETA | S108: 0 | T108: 0 | U108: =6273/30 -> 209.1 | V108: =TRUNC(U108*P108,2) -> 3136.5 | W108: =TRUNC(U108*P108*0.04,2) -> 125.46 | X108: =TRUNC(U108*0.07*P108,2) -> 219.55 | Y108: =S108 -> 0 | Z108: =TRUNC(X108+W108+(IF(Y108>519,519,Y108))+IF(R108=0,0,R108*U108),2) -> 345.01 | AA108: =TRUNC((IF(R108=0,P108*U108,(P108-R108)*U108))+(IF(Y108<519,0,Y108-519)),2)+T108 -> 3136.5 | AB108: =Z108+AA108 -> 3481.51 | AE108: 0 | AF108: =IF(U108>0.01,(AA108-VLOOKUP(AA108,quincenal,1))*VLOOKUP(AA108,quincenal,3)+VLOOKUP(AA108,quincenal,2)-VLOOKUP(AA108,subquincenal,2),0) -> 112.068112 | AG108: =TRUNC(IF(AF108>0.01,AF108,0),2) -> 112.06 | AH108: =TRUNC(IF(AF108<0.01,-AF108,0),2) -> 0 | AI108: =AB108-AD108-AE108-AG108+AH108 -> 3369.45 | AJ108: =[2]PORTADA!$D$10 -> 1 | AL108: 69
A109: =A108+1 -> 59 | D109: BERNAL RUIZ LAURO | H109: NOTIFICADOR | P109: 15 | U109: =6338/30 -> 211.2666667 | V109: =TRUNC(U109*P109,2) -> 3169 | W109: =TRUNC(U109*P109*0.04,2) -> 126.76 | X109: =TRUNC(U109*0.07*P109,2) -> 221.83 | Y109: =S109 -> 0 | Z109: =TRUNC(X109+W109+(IF(Y109>519,519,Y109))+IF(R109=0,0,R109*U109),2) -> 348.59 | AA109: =TRUNC((IF(R109=0,P109*U109,(P109-R109)*U109))+(IF(Y109<519,0,Y109-519)),2)+T109 -> 3169 | AB109: =Z109+AA109 -> 3517.59 | AE109: 0 | AF109: =IF(U109>0.01,(AA109-VLOOKUP(AA109,quincenal,1))*VLOOKUP(AA109,quincenal,3)+VLOOKUP(AA109,quincenal,2)-VLOOKUP(AA109,subquincenal,2),0) -> 115.604112 | AG109: =TRUNC(IF(AF109>0.01,AF109,0),2) -> 115.6 | AH109: =TRUNC(IF(AF109<0.01,-AF109,0),2) -> 0 | AI109: =AB109-AD109-AE109-AG109+AH109 -> 3401.99 | AL109: 70
D110: DEPARTAMENTO DE INGRESOS | V110: =SUM(V107:V109) -> 9662.5 | W110: 386.5 | X110: 676.37 | Y110: 0 | Z110: 1062.87 | AA110: 9662.5 | AB110: 10725.37 | AC110: 0 | AD110: 0 | AE110: 0 | AF110: 363.730736 | AG110: 363.71 | AH110: 0 | AI110: 10361.66
D112: INSTITUTO DE LA MUJER
A113: =A109+1 -> 60 | B113: 3 | C113: 7 | D113: MEDINA FLORES MIRIAM CONCEPCION | E113: LEGJ | H113: ENCARGADA | P113: 15 | Q113: TARJETA | S113: 0 | T113: 0 | U113: =6795/30 -> 226.5 | V113: =TRUNC(U113*P113,2) -> 3397.5 | W113: =TRUNC(U113*P113*0.04,2) -> 135.9 | X113: =TRUNC(U113*0.07*P113,2) -> 237.82 | Y113: =S113 -> 0 | Z113: =TRUNC(X113+W113+(IF(Y113>519,519,Y113))+IF(R113=0,0,R113*U113),2) -> 373.72 | AA113: =TRUNC((IF(R113=0,P113*U113,(P113-R113)*U113))+(IF(Y113<519,0,Y113-519)),2)+T113 -> 3397.5 | AB113: =Z113+AA113 -> 3771.22 | AE113: 0 | AF113: =IF(U113>0.01,(AA113-VLOOKUP(AA113,quincenal,1))*VLOOKUP(AA113,quincenal,3)+VLOOKUP(AA113,quincenal,2)-VLOOKUP(AA113,subquincenal,2),0) -> 140.464912 | AG113: =TRUNC(IF(AF113>0.01,AF113,0),2) -> 140.46 | AH113: =TRUNC(IF(AF113<0.01,-AF113,0),2) -> 0 | AI113: =AB113-AD113-AE113-AG113+AH113 -> 3630.76 | AJ113: =#REF! ->  | AL113: 72
D114: DEPARTAMENTO DE EGRESOS | V114: =SUM(V113) -> 3397.5 | W114: 135.9 | X114: 237.82 | Y114: 0 | Z114: 373.72 | AA114: 3397.5 | AB114: 3771.22 | AC114: 0 | AD114: 0 | AE114: 0 | AF114: 140.464912 | AG114: 140.46 | AH114: 0 | AI114: 3630.76
D116: DEPARTAMENTO DE INFORMATICA
A117: =A113+1 -> 61 | B117: 3 | C117: 12 | D117: ILLAN ARIAS CESAR | E117: DIME | H117: DIRECTOR DE IDE SISTEMAS | P117: 15 | Q117: TARJETA | S117: 0 | T117: 0 | U117: =8121/30 -> 270.7 | V117: =TRUNC(U117*P117,2) -> 4060.5 | W117: =TRUNC(U117*P117*0.04,2) -> 162.42 | X117: =TRUNC(U117*0.07*P117,2) -> 284.23 | Y117: =S117 -> 0 | Z117: =TRUNC(X117+W117+(IF(Y117>519,519,Y117))+IF(R117=0,0,R117*U117),2) -> 446.65 | AA117: =TRUNC((IF(R117=0,P117*U117,(P117-R117)*U117))+(IF(Y117<519,0,Y117-519)),2)+T117 -> 4060.5 | AB117: =Z117+AA117 -> 4507.15 | AE117: 0 | AF117: =IF(U117>0.01,(AA117-VLOOKUP(AA117,quincenal,1))*VLOOKUP(AA117,quincenal,3)+VLOOKUP(AA117,quincenal,2)-VLOOKUP(AA117,subquincenal,2),0) -> 358.7684 | AG117: =TRUNC(IF(AF117>0.01,AF117,0),2) -> 358.76 | AH117: =TRUNC(IF(AF117<0.01,-AF117,0),2) -> 0 | AI117: =AB117-AD117-AE117-AG117+AH117 -> 4148.39 | AJ117: =#REF! ->  | AL117: 73
A118: =A117+1 -> 62 | D118: BERNAL ESTRADA EDGAR FERNANDO | H118: DIRECTOR DE IDE INFORMATICA | P118: 15 | Q118: TARJETA | S118: 0 | T118: 0 | U118: =4615/30 -> 153.8333333 | V118: =TRUNC(U118*P118,2) -> 2307.5 | W118: =TRUNC(U118*P118*0.04,2) -> 92.3 | X118: =TRUNC(U118*0.07*P118,2) -> 161.52 | Y118: =S118 -> 0 | Z118: =TRUNC(X118+W118+(IF(Y118>519,519,Y118))+IF(R118=0,0,R118*U118),2) -> 253.82 | AA118: =TRUNC((IF(R118=0,P118*U118,(P118-R118)*U118))+(IF(Y118<519,0,Y118-519)),2)+T118 -> 2307.5 | AB118: =Z118+AA118 -> 2561.32 | AF118: =IF(U118>0.01,(AA118-VLOOKUP(AA118,quincenal,1))*VLOOKUP(AA118,quincenal,3)+VLOOKUP(AA118,quincenal,2)-VLOOKUP(AA118,subquincenal,2),0) -> -27.777088 | AG118: =TRUNC(IF(AF118>0.01,AF118,0),2) -> 0 | AH118: =TRUNC(IF(AF118<0.01,-AF118,0),2) -> 27.77 | AI118: =AB118-AD118-AE118-AG118+AH118 -> 2589.09 | AJ118: =#REF! ->  | AL118: 74
D119: DEPARTAMENTO DE COMPUTO E INFORMATICA | V119: =SUM(V117:V118) -> 6368 | W119: =SUM(W117:W118) -> 254.72 | X119: 445.75 | Y119: 0 | Z119: 700.47 | AA119: 6368 | AB119: 7068.47 | AC119: 0 | AD119: 0 | AE119: 0 | AF119: 330.991312 | AG119: 358.76 | AH119: 27.77 | AI119: 6737.48
D121: DEPARTAMENTO DE IMPUESTO PREDIAL Y CATASTRO
A122: =A118+1 -> 63 | D122: ROBLES VENEGAS OSCAR HUMBERTO | H122: DIRECTOR | P122: 15 | Q122: TARJETA | S122: 0 | T122: 0 | U122: =12653/30 -> 421.7666667 | V122: =TRUNC(U122*P122,2) -> 6326.5 | W122: =TRUNC(U122*P122*0.04,2) -> 253.06 | X122: =TRUNC(U122*0.07*P122,2) -> 442.85 | Y122: =S122 -> 0 | Z122: =TRUNC(X122+W122+(IF(Y122>519,519,Y122))+IF(R122=0,0,R122*U122),2) -> 695.91 | AA122: =TRUNC((IF(R122=0,P122*U122,(P122-R122)*U122))+(IF(Y122<519,0,Y122-519)),2)+T122 -> 6326.5 | AB122: =Z122+AA122 -> 7022.41 | AE122: 0 | AF122: =IF(U122>0.01,(AA122-VLOOKUP(AA122,quincenal,1))*VLOOKUP(AA122,quincenal,3)+VLOOKUP(AA122,quincenal,2)-VLOOKUP(AA122,subquincenal,2),0) -> 804.151224 | AG122: =TRUNC(IF(AF122>0.01,AF122,0),2) -> 804.15 | AH122: =TRUNC(IF(AF122<0.01,-AF122,0),2) -> 0 | AI122: =AB122-AD122-AE122-AG122+AH122 -> 6218.26 | AL122: 75
A123: =A122+1 -> 64 | B123: 3 | C123: 13 | D123: CASTELLANOS LOPEZ FRANCISCO JAVIER | E123: CAPB801105 | F123: CAPB801105MJCMRR06 | G123: 2007-01-01 | H123: SUB-DIRECTOR DE CATASTRO | P123: 15 | Q123: TARJETA | S123: 0 | T123: 0 | U123: =8551/30 -> 285.0333333 | V123: =TRUNC(U123*P123,2) -> 4275.5 | W123: =TRUNC(U123*P123*0.04,2) -> 171.02 | X123: =TRUNC(U123*0.07*P123,2) -> 299.28 | Y123: =S123 -> 0 | Z123: =TRUNC(X123+W123+(IF(Y123>519,519,Y123))+IF(R123=0,0,R123*U123),2) -> 470.3 | AA123: =TRUNC((IF(R123=0,P123*U123,(P123-R123)*U123))+(IF(Y123<519,0,Y123-519)),2)+T123 -> 4275.5 | AB123: =Z123+AA123 -> 4745.8 | AE123: 0 | AF123: =IF(U123>0.01,(AA123-VLOOKUP(AA123,quincenal,1))*VLOOKUP(AA123,quincenal,3)+VLOOKUP(AA123,quincenal,2)-VLOOKUP(AA123,subquincenal,2),0) -> 393.675088 | AG123: =TRUNC(IF(AF123>0.01,AF123,0),2) -> 393.67 | AH123: =TRUNC(IF(AF123<0.01,-AF123,0),2) -> 0 | AI123: =AB123-AD123-AE123-AG123+AH123 -> 4352.13 | AJ123: =#REF! ->  | AL123: 76
A124: =A123+1 -> 65 | D124: GARCIA LOPEZ MARIA ESMERALDA | E124: HEBC | H124: SECRETARIA EN CATASTRO | P124: 15 | Q124: TARJETA | S124: 0 | T124: 0 | U124: =4598/30 -> 153.2666667 | V124: 2299 | W124: 91.96 | X124: 160.93 | Y124: 0 | Z124: 252.89 | AA124: 2299 | AB124: 2551.89 | AF124: =IF(U124>0.01,(AA124-VLOOKUP(AA124,quincenal,1))*VLOOKUP(AA124,quincenal,3)+VLOOKUP(AA124,quincenal,2)-VLOOKUP(AA124,subquincenal,2),0) -> -28.701888 | AG124: =TRUNC(IF(AF124>0.01,AF124,0),2) -> 0 | AH124: =TRUNC(IF(AF124<0.01,-AF124,0),2) -> 28.7 | AI124: 2580.59 | AL124: 77
A125: 66 | D125: ORTEGA CRUZ ERIKA NARSEDALIA | H125: SECRETARIA EN CATASTRO | P125: 15 | Q125: TARJETA | S125: 0 | T125: 0 | U125: =4598/30 -> 153.2666667 | V125: =TRUNC(U125*P125,2) -> 2299 | W125: =TRUNC(U125*P125*0.04,2) -> 91.96 | X125: =TRUNC(U125*0.07*P125,2) -> 160.93 | Y125: =S125 -> 0 | Z125: =TRUNC(X125+W125+(IF(Y125>519,519,Y125))+IF(R125=0,0,R125*U125),2) -> 252.89 | AA125: =TRUNC((IF(R125=0,P125*U125,(P125-R125)*U125))+(IF(Y125<519,0,Y125-519)),2)+T125 -> 2299 | AB125: =Z125+AA125 -> 2551.89 | AE125: 0 | AF125: =IF(U125>0.01,(AA125-VLOOKUP(AA125,quincenal,1))*VLOOKUP(AA125,quincenal,3)+VLOOKUP(AA125,quincenal,2)-VLOOKUP(AA125,subquincenal,2),0) -> -28.701888 | AG125: =TRUNC(IF(AF125>0.01,AF125,0),2) -> 0 | AH125: =TRUNC(IF(AF125<0.01,-AF125,0),2) -> 28.7 | AI125: =AB125-AD125-AE125-AG125+AH125 -> 2580.59 | AL125: 78
D126: DEPARTAMENTO DE IMPUESTO PREDIAL Y CATASTRO | V126: =SUM(V122:V125) -> 15200 | W126: 608 | X126: 1063.99 | Y126: 0 | Z126: 1671.99 | AA126: 15200 | AB126: 16871.99 | AC126: 0 | AD126: 0 | AE126: 0 | AF126: 1140.422536 | AG126: 1197.82 | AH126: 57.4 | AI126: 15731.57
D128: ADMINISTRACION DE LOS SERVICIOS PUBLICOS MUNICIPALES
A129: =A125+1 -> 67 | D129: MARISCAL MORALES JESUS RICARDO | E129: HEAM740507 | F129: HEAM740507HJCRGN04 | G129: 2008-05-01 | H129: DIRECTOR DE SERVICIOS ´PÚBLICOS MUNICIPALES | P129: 15 | Q129: TARJETA | S129: 0 | T129: 0 | U129: =15321/30 -> 510.7 | V129: =TRUNC(U129*P129,2) -> 7660.5 | W129: =TRUNC(U129*P129*0.04,2) -> 306.42 | X129: =TRUNC(U129*0.07*P129,2) -> 536.23 | Y129: =S129 -> 0 | Z129: =TRUNC(X129+W129+(IF(Y129>519,519,Y129))+IF(R129=0,0,R129*U129),2) -> 842.65 | AA129: =TRUNC((IF(R129=0,P129*U129,(P129-R129)*U129))+(IF(Y129<519,0,Y129-519)),2)+T129 -> 7660.5 | AB129: =Z129+AA129 -> 8503.15 | AE129: 0 | AF129: =IF(U129>0.01,(AA129-VLOOKUP(AA129,quincenal,1))*VLOOKUP(AA129,quincenal,3)+VLOOKUP(AA129,quincenal,2)-VLOOKUP(AA129,subquincenal,2),0) -> 1089.093624 | AG129: =TRUNC(IF(AF129>0.01,AF129,0),2) -> 1089.09 | AH129: =TRUNC(IF(AF129<0.01,-AF129,0),2) -> 0 | AI129: =AB129-AD129-AE129-AG129+AH129 -> 7414.06 | AJ129: =#REF! ->  | AL129: 79
A130: =A129+1 -> 68 | D130: CERVANTES VELAZCO ISAIAS | E130: IAOR | H130: ENCARGADO DE MANTENIMIENTO A VEHICULOS | P130: 15 | Q130: TARJETA | S130: 0 | T130: 0 | U130: =9223/30 -> 307.4333333 | V130: =TRUNC(U130*P130,2) -> 4611.5 | W130: =TRUNC(U130*P130*0.04,2) -> 184.46 | X130: =TRUNC(U130*0.07*P130,2) -> 322.8 | Y130: =S130 -> 0 | Z130: =TRUNC(X130+W130+(IF(Y130>519,519,Y130))+IF(R130=0,0,R130*U130),2) -> 507.26 | AA130: =TRUNC((IF(R130=0,P130*U130,(P130-R130)*U130))+(IF(Y130<519,0,Y130-519)),2)+T130 -> 4611.5 | AB130: =Z130+AA130 -> 5118.76 | AE130: 0 | AF130: =IF(U130>0.01,(AA130-VLOOKUP(AA130,quincenal,1))*VLOOKUP(AA130,quincenal,3)+VLOOKUP(AA130,quincenal,2)-VLOOKUP(AA130,subquincenal,2),0) -> 453.886288 | AG130: =TRUNC(IF(AF130>0.01,AF130,0),2) -> 453.88 | AH130: =TRUNC(IF(AF130<0.01,-AF130,0),2) -> 0 | AI130: =AB130-AD130-AE130-AG130+AH130 -> 4664.88 | AL130: 80
A131: =A130+1 -> 69 | D131: HERNANDEZ AGUIRRE JOSE MANUEL | H131: OPERADOR DE MAQUINARIA | P131: 15 | U131: =7130/30 -> 237.6666667 | V131: =TRUNC(U131*P131,2) -> 3565 | W131: =TRUNC(U131*P131*0.04,2) -> 142.6 | X131: =TRUNC(U131*0.07*P131,2) -> 249.55 | Y131: =S131 -> 0 | Z131: =TRUNC(X131+W131+(IF(Y131>519,519,Y131))+IF(R131=0,0,R131*U131),2) -> 392.15 | AA131: =TRUNC((IF(R131=0,P131*U131,(P131-R131)*U131))+(IF(Y131<519,0,Y131-519)),2)+T131 -> 3565 | AB131: =Z131+AA131 -> 3957.15 | AE131: 0 | AF131: =IF(U131>0.01,(AA131-VLOOKUP(AA131,quincenal,1))*VLOOKUP(AA131,quincenal,3)+VLOOKUP(AA131,quincenal,2)-VLOOKUP(AA131,subquincenal,2),0) -> 176.388912 | AG131: =TRUNC(IF(AF131>0.01,AF131,0),2) -> 176.38 | AH131: =TRUNC(IF(AF131<0.01,-AF131,0),2) -> 0 | AI131: =AB131-AD131-AE131-AG131+AH131 -> 3780.77 | AL131: 81
A132: 70 | D132: ACEVEDO OCHOA J. GUADALUPE | H132: ALMACENISTA | P132: 15 | Q132: TARJETA | S132: 0 | T132: 0 | U132: =5714/30 -> 190.4666667 | V132: =TRUNC(U132*P132,2) -> 2857 | W132: =TRUNC(U132*P132*0.04,2) -> 114.28 | X132: =TRUNC(U132*0.07*P132,2) -> 199.99 | Y132: =S132 -> 0 | Z132: =TRUNC(X132+W132+(IF(Y132>519,519,Y132))+IF(R132=0,0,R132*U132),2) -> 314.27 | AA132: =TRUNC((IF(R132=0,P132*U132,(P132-R132)*U132))+(IF(Y132<519,0,Y132-519)),2)+T132 -> 2857 | AB132: =Z132+AA132 -> 3171.27 | AE132: 0 | AF132: =IF(U132>0.01,(AA132-VLOOKUP(AA132,quincenal,1))*VLOOKUP(AA132,quincenal,3)+VLOOKUP(AA132,quincenal,2)-VLOOKUP(AA132,subquincenal,2),0) -> 61.408512 | AG132: =TRUNC(IF(AF132>0.01,AF132,0),2) -> 61.4 | AH132: =TRUNC(IF(AF132<0.01,-AF132,0),2) -> 0 | AI132: =AB132-AD132-AE132-AG132+AH132 -> 3109.87 | AL132: 94
A133: 71 | D133: ARQUIETA VADILLO ARTURO | E133: AUVA551030FJ0 | F133: AUVA551030HJCRDR15 | H133: PINTOR GENERAL | P133: 15 | Q133: SOBRE | S133: 0 | T133: 0 | U133: =9416/30 -> 313.8666667 | V133: =TRUNC(U133*P133,2) -> 4708 | W133: =TRUNC(U133*P133*0.04,2) -> 188.32 | X133: =TRUNC(U133*0.07*P133,2) -> 329.56 | Y133: =S133 -> 0 | Z133: =TRUNC(X133+W133+(IF(Y133>519,519,Y133))+IF(R133=0,0,R133*U133),2) -> 517.88 | AA133: =TRUNC((IF(R133=0,P133*U133,(P133-R133)*U133))+(IF(Y133<519,0,Y133-519)),2)+T133 -> 4708 | AB133: =Z133+AA133 -> 5225.88 | AD133: 1000 | AF133: =IF(U133>0.01,(AA133-VLOOKUP(AA133,quincenal,1))*VLOOKUP(AA133,quincenal,3)+VLOOKUP(AA133,quincenal,2)-VLOOKUP(AA133,subquincenal,2),0) -> 471.179088 | AG133: =TRUNC(IF(AF133>0.01,AF133,0),2) -> 471.17 | AH133: =TRUNC(IF(AF133<0.01,-AF133,0),2) -> 0 | AI133: =AB133-AD133-AE133-AG133+AH133 -> 3754.71 | AL133: 96
D134: ADMINISTRACION DE LOS SERVICIOS PUBLICOS MUNICIPALES | V134: =SUM(V129:V133) -> 23402 | W134: 936.08 | X134: 1638.13 | Y134: 0 | Z134: 2574.21 | AA134: 23402 | AB134: 25976.21 | AC134: 0 | AD134: 1000 | AE134: 0 | AF134: 2251.956424 | AG134: 2251.92 | AH134: 0 | AI134: 22724.29
D135: DIRECCION GENERAL DE OBRAS PUBLICAS
A136: =A133+1 -> 72 | B136: 4 | C136: 1 | D136: DAVALOS SALCEDO MIGUEL CARLOS | H136: DIRECTOR DE OBRAS PÚBLICAS | P136: 15 | Q136: TARJETA | S136: 0 | T136: 0 | U136: =14973/30 -> 499.1 | V136: =TRUNC(U136*P136,2) -> 7486.5 | W136: =TRUNC(U136*P136*0.04,2) -> 299.46 | X136: =TRUNC(U136*0.07*P136,2) -> 524.05 | Y136: =S136 -> 0 | Z136: =TRUNC(X136+W136+(IF(Y136>519,519,Y136))+IF(R136=0,0,R136*U136),2) -> 823.51 | AA136: =TRUNC((IF(R136=0,P136*U136,(P136-R136)*U136))+(IF(Y136<519,0,Y136-519)),2)+T136 -> 7486.5 | AB136: =Z136+AA136 -> 8310.01 | AE136: 0 | AF136: =IF(U136>0.01,(AA136-VLOOKUP(AA136,quincenal,1))*VLOOKUP(AA136,quincenal,3)+VLOOKUP(AA136,quincenal,2)-VLOOKUP(AA136,subquincenal,2),0) -> 1051.927224 | AG136: =TRUNC(IF(AF136>0.01,AF136,0),2) -> 1051.92 | AH136: =TRUNC(IF(AF136<0.01,-AF136,0),2) -> 0 | AI136: =AB136-AD136-AE136-AG136+AH136 -> 7258.09 | AJ136: =#REF! ->  | AL136: 97
A137: =A136+1 -> 73 | D137: GUTIERREZ MARTINEZ JORGE | H137: SUB DIRECTOR DE OBRAS PÚBLICAS | P137: 15 | Q137: TARJETA | S137: 0 | T137: 0 | U137: =10341/30 -> 344.7 | V137: =TRUNC(U137*P137,2) -> 5170.5 | W137: =TRUNC(U137*P137*0.04,2) -> 206.82 | X137: =TRUNC(U137*0.07*P137,2) -> 361.93 | Y137: =S137 -> 0 | Z137: =TRUNC(X137+W137+(IF(Y137>519,519,Y137))+IF(R137=0,0,R137*U137),2) -> 568.75 | AA137: =TRUNC((IF(R137=0,P137*U137,(P137-R137)*U137))+(IF(Y137<519,0,Y137-519)),2)+T137 -> 5170.5 | AB137: =Z137+AA137 -> 5739.25 | AE137: 0 | AF137: =IF(U137>0.01,(AA137-VLOOKUP(AA137,quincenal,1))*VLOOKUP(AA137,quincenal,3)+VLOOKUP(AA137,quincenal,2)-VLOOKUP(AA137,subquincenal,2),0) -> 557.229624 | AG137: =TRUNC(IF(AF137>0.01,AF137,0),2) -> 557.22 | AH137: =TRUNC(IF(AF137<0.01,-AF137,0),2) -> 0 | AI137: =AB137-AD137-AE137-AG137+AH137 -> 5182.03 | AL137: 98
A138: =A137+1 -> 74 | D138: FLORES IÑIGUEZ JUAN RAYMUNDO | E138: FOIJ8508313Z1 | F138: FOIJ850831HJCLXN07 | G138: 2007-01-01 | H138: SUB-DIRECTOR DESARROLLO URBANO | P138: 15 | Q138: TARJETA | S138: 0 | T138: 0 | U138: =7781/30 -> 259.3666667 | V138: 3890.5 | W138: 155.62 | X138: 272.33 | Y138: 0 | Z138: 427.95 | AA138: 3890.5 | AB138: 4318.45 | AE138: 0 | AF138: =IF(U138>0.01,(AA138-VLOOKUP(AA138,quincenal,1))*VLOOKUP(AA138,quincenal,3)+VLOOKUP(AA138,quincenal,2)-VLOOKUP(AA138,subquincenal,2),0) -> 331.5684 | AG138: 331.56 | AH138: 0 | AI138: 3986.89 | AJ138: =[2]PORTADA!$D$10 -> 1 | AL138: 99
A139: 75 | D139: RENTERIA MENDEZ FRANCISCO | E139: REMF850816I26 | F139: REMF850816HJCNNR00 | G139: 2008-03-05 | H139: AUXILIAR DE DIRECCIÓN | P139: 15 | Q139: TARJETA | S139: 0 | T139: 0 | U139: =9121/30 -> 304.0333333 | V139: 4560.5 | W139: 182.42 | X139: 319.23 | Y139: 0 | Z139: 501.65 | AA139: 4560.5 | AB139: 5062.15 | AE139: 0 | AF139: 444.747088 | AG139: 444.74 | AH139: 0 | AI139: 4617.41 | AJ139: =[2]PORTADA!$D$10 -> 1 | AL139: 100
D140: =D135 -> DIRECCION GENERAL DE OBRAS PUBLICAS | V140: =SUM(V136:V139) -> 21108 | W140: 844.32 | X140: 1477.54 | Y140: 0 | Z140: 2321.86 | AA140: 21108 | AB140: 23429.86 | AC140: 0 | AD140: 0 | AE140: 0 | AF140: 2385.472336 | AG140: 2385.44 | AH140: 0 | AI140: 21044.42
D142: DEPARTAMENTO DE CEMENTERIOS
A143: =A139+1 -> 76 | D143: ILLAN RUIZ FERNANDO | E143: RIOA520619 | F143: RIOA520619HJCVRD05 | H143: ADMINISTRADOR DE CEMENTERIOS | P143: 15 | Q143: TARJETA | S143: 0 | T143: 0 | U143: =6795/30 -> 226.5 | V143: =TRUNC(U143*P143,2) -> 3397.5 | W143: =TRUNC(U143*P143*0.04,2) -> 135.9 | X143: =TRUNC(U143*0.07*P143,2) -> 237.82 | Y143: =S143 -> 0 | Z143: =TRUNC(X143+W143+(IF(Y143>519,519,Y143))+IF(R143=0,0,R143*U143),2) -> 373.72 | AA143: =TRUNC((IF(R143=0,P143*U143,(P143-R143)*U143))+(IF(Y143<519,0,Y143-519)),2)+T143 -> 3397.5 | AB143: =Z143+AA143 -> 3771.22 | AE143: 0 | AF143: =IF(U143>0.01,(AA143-VLOOKUP(AA143,quincenal,1))*VLOOKUP(AA143,quincenal,3)+VLOOKUP(AA143,quincenal,2)-VLOOKUP(AA143,subquincenal,2),0) -> 140.464912 | AG143: =TRUNC(IF(AF143>0.01,AF143,0),2) -> 140.46 | AH143: =TRUNC(IF(AF143<0.01,-AF143,0),2) -> 0 | AI143: =AB143-AD143-AE143-AG143+AH143 -> 3630.76 | AL143: 103
D144: DEPARTAMENTO DE CEMENTERIOS | V144: =SUM(V143:V143) -> 3397.5 | W144: 135.9 | X144: 237.82 | Y144: 0 | Z144: 373.72 | AA144: 3397.5 | AB144: 3771.22 | AC144: 0 | AD144: 0 | AE144: 0 | AF144: 140.464912 | AG144: 140.46 | AH144: 0 | AI144: 3630.76
D146: DEPARTAMENTO DE RASTRO
A147: =A143+1 -> 77 | D147: LOPEZ VILLEGAS J. JESUS | E147: LOVJ470602UN7 | F147: LOVJ470602HJCPLS07 | H147: GUARDA RASTRO | P147: 15 | Q147: TARJETA | S147: 0 | T147: 0 | U147: =4923/30 -> 164.1 | V147: =TRUNC(U147*P147,2) -> 2461.5 | W147: =TRUNC(U147*P147*0.04,2) -> 98.46 | X147: =TRUNC(U147*0.07*P147,2) -> 172.3 | Y147: =S147 -> 0 | Z147: =TRUNC(X147+W147+(IF(Y147>519,519,Y147))+IF(R147=0,0,R147*U147),2) -> 270.76 | AA147: =TRUNC((IF(R147=0,P147*U147,(P147-R147)*U147))+(IF(Y147<519,0,Y147-519)),2)+T147 -> 2461.5 | AB147: =Z147+AA147 -> 2732.26 | AE147: 0 | AF147: =IF(U147>0.01,(AA147-VLOOKUP(AA147,quincenal,1))*VLOOKUP(AA147,quincenal,3)+VLOOKUP(AA147,quincenal,2)-VLOOKUP(AA147,subquincenal,2),0) -> 3.378112 | AG147: =TRUNC(IF(AF147>0.01,AF147,0),2) -> 3.37 | AH147: =TRUNC(IF(AF147<0.01,-AF147,0),2) -> 0 | AI147: =AB147-AD147-AE147-AG147+AH147 -> 2728.89 | AJ147: =[2]PORTADA!$D$10 -> 1 | AL147: 107
A148: =A147+1 -> 78 | D148: FREGOSO BARBOZA CARLOS RAFAEL | E148: PARR | H148: VETERINARIO | P148: 15 | Q148: TARJETA | S148: 0 | T148: 0 | U148: =7632/30 -> 254.4 | V148: =TRUNC(U148*P148,2) -> 3816 | W148: =TRUNC(U148*P148*0.04,2) -> 152.64 | X148: =TRUNC(U148*0.07*P148,2) -> 267.12 | Y148: =S148 -> 0 | Z148: =TRUNC(X148+W148+(IF(Y148>519,519,Y148))+IF(R148=0,0,R148*U148),2) -> 419.76 | AA148: =TRUNC((IF(R148=0,P148*U148,(P148-R148)*U148))+(IF(Y148<519,0,Y148-519)),2)+T148 -> 3816 | AB148: =Z148+AA148 -> 4235.76 | AE148: 0 | AF148: =IF(U148>0.01,(AA148-VLOOKUP(AA148,quincenal,1))*VLOOKUP(AA148,quincenal,3)+VLOOKUP(AA148,quincenal,2)-VLOOKUP(AA148,subquincenal,2),0) -> 319.6484 | AG148: =TRUNC(IF(AF148>0.01,AF148,0),2) -> 319.64 | AH148: =TRUNC(IF(AF148<0.01,-AF148,0),2) -> 0 | AI148: =AB148-AD148-AE148-AG148+AH148 -> 3916.12 | AJ148: =[2]PORTADA!$D$10 -> 1 | AL148: 108
D149: DEPARTAMENTO DE RASTRO | V149: =SUM(V147:V148) -> 6277.5 | W149: 251.1 | X149: 439.42 | Y149: 0 | Z149: 690.52 | AA149: 6277.5 | AB149: 6968.02 | AC149: 0 | AD149: 0 | AE149: 0 | AF149: 323.026512 | AG149: 323.01 | AH149: 0 | AI149: 6645.01 | AJ149: 2 | AK149: 0
D152: DEPARTAMENTO DE ASEO PUBLICO
A153: =A148+1 -> 79 | B153: 5 | C153: 7 | D153: NAVARRO HERNANDEZ SOSTENES | E153: HUAB811011 | F153: HUAB810114HJCRGR01 | G153: 2007-02-01 | H153: SUPERVISOR DE ASEO PUBLICO | P153: 15 | Q153: TARJETA | S153: 0 | T153: 0 | U153: =6130/30 -> 204.3333333 | V153: =TRUNC(U153*P153,2) -> 3065 | W153: =TRUNC(U153*P153*0.04,2) -> 122.6 | X153: =TRUNC(U153*0.07*P153,2) -> 214.55 | Y153: =S153 -> 0 | Z153: =TRUNC(X153+W153+(IF(Y153>519,519,Y153))+IF(R153=0,0,R153*U153),2) -> 337.15 | AA153: =TRUNC((IF(R153=0,P153*U153,(P153-R153)*U153))+(IF(Y153<519,0,Y153-519)),2)+T153 -> 3065 | AB153: =Z153+AA153 -> 3402.15 | AE153: 0 | AF153: =IF(U153>0.01,(AA153-VLOOKUP(AA153,quincenal,1))*VLOOKUP(AA153,quincenal,3)+VLOOKUP(AA153,quincenal,2)-VLOOKUP(AA153,subquincenal,2),0) -> 84.038912 | AG153: =TRUNC(IF(AF153>0.01,AF153,0),2) -> 84.03 | AH153: =TRUNC(IF(AF153<0.01,-AF153,0),2) -> 0 | AI153: =AB153-AD153-AE153-AG153+AH153 -> 3318.12 | AJ153: =#REF! ->  | AL153: 112
A154: =A153+1 -> 80 | D154: HUERTA AGUILA BERNARDINO | E154: HUAB811011 | F154: HUAB810114HJCRGR01 | G154: 2007-02-01 | H154: RECOLECTOR ASEO PUBLICO | P154: 15 | Q154: TARJETA | S154: 0 | T154: 0 | U154: =4622/30 -> 154.0666667 | V154: 2311 | W154: 92.44 | X154: 161.77 | Y154: 0 | Z154: 254.21 | AA154: 2311 | AB154: 2565.21 | AE154: 0 | AF154: =IF(U154>0.01,(AA154-VLOOKUP(AA154,quincenal,1))*VLOOKUP(AA154,quincenal,3)+VLOOKUP(AA154,quincenal,2)-VLOOKUP(AA154,subquincenal,2),0) -> -27.396288 | AG154: 0 | AH154: 27.39 | AI154: 2592.6 | AJ154: =[2]PORTADA!$D$10 -> 1 | AL154: 113
A155: =A154+1 -> 81 | D155: GRACIA GOMEZ JAVIER | E155: GAGJ731114 | F155: GAGJ731114HJCRMV00 | G155: 2004-01-01 | H155: RECOLECTOR ASEO PUBLICO | P155: 15 | Q155: TARJETA | S155: 0 | T155: 0 | U155: =4622/30 -> 154.0666667 | V155: 2311 | W155: 92.44 | X155: 161.77 | Y155: 0 | Z155: 254.21 | AA155: 2311 | AB155: 2565.21 | AE155: 0 | AF155: -27.396288 | AG155: 0 | AH155: 27.39 | AI155: 2592.6 | AJ155: =[2]PORTADA!$D$10 -> 1 | AL155: 114
A156: =A155+1 -> 82 | D156: FREGOZO ALVARADO ALFONSO | E156: FEAA650918 | F156: FEAA650818HJCRLL05 | G156: 2003-01-01 | H156: RECOLECTOR ASEO PUBLICO | P156: 15 | Q156: TARJETA | S156: 0 | T156: 0 | U156: 154.0666667 | V156: 2311 | W156: 92.44 | X156: 161.77 | Y156: 0 | Z156: 254.21 | AA156: 2311 | AB156: 2565.21 | AE156: 0 | AF156: -27.396288 | AG156: 0 | AH156: 27.39 | AI156: 2592.6 | AJ156: =[2]PORTADA!$D$10 -> 1 | AL156: 115
A157: 83 | D157: TELLEZ GOMEZ VICENTE | H157: RECOLECTOR ASEO PUBLICO | P157: 15 | Q157: TARJETA | S157: 0 | T157: 0 | U157: 154.0666667 | V157: 2311 | W157: 92.44 | X157: 161.77 | Y157: =S157 -> 0 | Z157: 254.21 | AA157: 2311 | AB157: =Z157+AA157 -> 2565.21 | AD157: 0 | AE157: 0 | AF157: =IF(U157>0.01,(AA157-VLOOKUP(AA157,quincenal,1))*VLOOKUP(AA157,quincenal,3)+VLOOKUP(AA157,quincenal,2)-VLOOKUP(AA157,subquincenal,2),0) -> -27.396288 | AG157: 0 | AH157: =TRUNC(IF(AF157<0.01,-AF157,0),2) -> 27.39 | AI157: =AB157-AD157-AE157-AG157+AH157 -> 2592.6 | AL157: 116
A158: 84 | D158: CISNEROS VAZQUEZ RAMIRO | E158: CIVR540430 | F158: CIVR540430HJCSZM04 | G158: 2007-01-01 | H158: RECOLECTOR ASEO PUBLICO | P158: 15 | Q158: TARJETA | S158: 0 | T158: 0 | U158: =4622/30 -> 154.0666667 | V158: 2311 | W158: 92.44 | X158: 161.77 | Y158: 0 | Z158: 254.21 | AA158: 2311 | AB158: 2565.21 | AE158: 0 | AF158: -27.396288 | AG158: 0 | AH158: 27.39 | AI158: 2592.6 | AJ158: =[2]PORTADA!$D$10 -> 1 | AL158: 121
D159: DEPARTAMENTO DE ASEO PUBLICO | V159: =SUM(V153:V158) -> 14620 | W159: 584.8 | X159: 1023.4 | Y159: 0 | Z159: 1608.2 | AA159: 14620 | AB159: 16228.2 | AC159: 0 | AD159: 0 | AE159: 0 | AF159: -52.942528 | AG159: 84.03 | AH159: 136.95 | AI159: 16281.12
D161: DEPARTAMENTO DE PARQUES Y JARDINES
A162: =A158+1 -> 85 | B162: 5 | C162: 8 | D162: NAVARRO HUERTA ISIDRO | E162: HUCR450811 | F162: HUCR450831HJCRRM08 | G162: 2004-01-01 | H162: SUPERVISOR DE PARQUES Y JARDINES | P162: 15 | Q162: TARJETA | S162: 0 | T162: 0 | U162: =6130/30 -> 204.3333333 | V162: =TRUNC(U162*P162,2) -> 3065 | W162: =TRUNC(U162*P162*0.04,2) -> 122.6 | X162: =TRUNC(U162*0.07*P162,2) -> 214.55 | Y162: =S162 -> 0 | Z162: =TRUNC(X162+W162+(IF(Y162>519,519,Y162))+IF(R162=0,0,R162*U162),2) -> 337.15 | AA162: =TRUNC((IF(R162=0,P162*U162,(P162-R162)*U162))+(IF(Y162<519,0,Y162-519)),2)+T162 -> 3065 | AB162: =Z162+AA162 -> 3402.15 | AE162: 0 | AF162: =IF(U162>0.01,(AA162-VLOOKUP(AA162,quincenal,1))*VLOOKUP(AA162,quincenal,3)+VLOOKUP(AA162,quincenal,2)-VLOOKUP(AA162,subquincenal,2),0) -> 84.038912 | AG162: =TRUNC(IF(AF162>0.01,AF162,0),2) -> 84.03 | AH162: =TRUNC(IF(AF162<0.01,-AF162,0),2) -> 0 | AI162: =AB162-AD162-AE162-AG162+AH162 -> 3318.12 | AJ162: =#REF! ->  | AL162: 122
D163: VERTEDERO MUNICIPAL | V163: =SUM(V162:V162) -> 3065 | W163: 122.6 | X163: 214.55 | Y163: 0 | Z163: 337.15 | AA163: 3065 | AB163: 3402.15 | AC163: 0 | AD163: 0 | AE163: 0 | AF163: 84.038912 | AG163: 84.03 | AH163: 0 | AI163: 3318.12
D165: DEPARTAMENTO DE ALUMBRADO PUBLICO
A166: =A162+1 -> 86 | D166: RUIZ HERNANDEZ CELESTINO | E166: RUHC540519 | F166: RUHC540519HJCZRL03 | G166: 2004-01-01 | H166: JEFE DE ALUMBRADO PUBLICO | P166: 15 | Q166: TARJETA | S166: 0 | T166: 0 | U166: =7130/30 -> 237.6666667 | V166: =TRUNC(U166*P166,2) -> 3565 | W166: =TRUNC(U166*P166*0.04,2) -> 142.6 | X166: =TRUNC(U166*0.07*P166,2) -> 249.55 | Y166: =S166 -> 0 | Z166: =TRUNC(X166+W166+(IF(Y166>519,519,Y166))+IF(R166=0,0,R166*U166),2) -> 392.15 | AA166: =TRUNC((IF(R166=0,P166*U166,(P166-R166)*U166))+(IF(Y166<519,0,Y166-519)),2)+T166 -> 3565 | AB166: =Z166+AA166 -> 3957.15 | AE166: 0 | AF166: =IF(U166>0.01,(AA166-VLOOKUP(AA166,quincenal,1))*VLOOKUP(AA166,quincenal,3)+VLOOKUP(AA166,quincenal,2)-VLOOKUP(AA166,subquincenal,2),0) -> 176.388912 | AG166: =TRUNC(IF(AF166>0.01,AF166,0),2) -> 176.38 | AH166: =TRUNC(IF(AF166<0.01,-AF166,0),2) -> 0 | AI166: =AB166-AD166-AE166-AG166+AH166 -> 3780.77 | AJ166: =[2]PORTADA!$D$10 -> 1 | AL166: 131
A167: =A166+1 -> 87 | D167: LARES RODRIGUEZ JOSE ANGEL | H167: ENCARGADO DE ALUMBRADO PUBLICO | P167: 15 | Q167: TARJETA | S167: 0 | T167: 0 | U167: =6795/30 -> 226.5 | V167: =TRUNC(U167*P167,2) -> 3397.5 | W167: =TRUNC(U167*P167*0.04,2) -> 135.9 | X167: =TRUNC(U167*0.07*P167,2) -> 237.82 | Y167: =S167 -> 0 | Z167: =TRUNC(X167+W167+(IF(Y167>519,519,Y167))+IF(R167=0,0,R167*U167),2) -> 373.72 | AA167: =TRUNC((IF(R167=0,P167*U167,(P167-R167)*U167))+(IF(Y167<519,0,Y167-519)),2)+T167 -> 3397.5 | AB167: =Z167+AA167 -> 3771.22 | AE167: 0 | AF167: =IF(U167>0.01,(AA167-VLOOKUP(AA167,quincenal,1))*VLOOKUP(AA167,quincenal,3)+VLOOKUP(AA167,quincenal,2)-VLOOKUP(AA167,subquincenal,2),0) -> 140.464912 | AG167: =TRUNC(IF(AF167>0.01,AF167,0),2) -> 140.46 | AH167: =TRUNC(IF(AF167<0.01,-AF167,0),2) -> 0 | AI167: =AB167-AD167-AE167-AG167+AH167 -> 3630.76 | AL167: 132
D168: DEPARTAMENTO DE ALUMBRADO PUBLICO | V168: =SUM(V166:V167) -> 6962.5 | W168: 278.5 | X168: 487.37 | Y168: 0 | Z168: 765.87 | AA168: 6962.5 | AB168: 7728.37 | AC168: 0 | AD168: 0 | AE168: 0 | AF168: 316.853824 | AG168: 316.84 | AH168: 0 | AI168: 7411.53
D171: DEPARTAMENTO DE DEPORTES
A172: =A167+1 -> 88 | B172: 5 | C172: 14 | D172: ACOSTA GONZALEZ MIGUEL | H172: ENCARGADO DE LA UNIDAD DEPORTIVA | P172: 15 | Q172: TARJETA | S172: 0 | T172: 0 | U172: =4615/30 -> 153.8333333 | V172: =TRUNC(U172*P172,2) -> 2307.5 | W172: =TRUNC(U172*P172*0.04,2) -> 92.3 | X172: =TRUNC(U172*0.07*P172,2) -> 161.52 | Y172: =S172 -> 0 | Z172: =TRUNC(X172+W172+(IF(Y172>519,519,Y172))+IF(R172=0,0,R172*U172),2) -> 253.82 | AA172: =TRUNC((IF(R172=0,P172*U172,(P172-R172)*U172))+(IF(Y172<519,0,Y172-519)),2)+T172 -> 2307.5 | AB172: =Z172+AA172 -> 2561.32 | AE172: 0 | AF172: =IF(U172>0.01,(AA172-VLOOKUP(AA172,quincenal,1))*VLOOKUP(AA172,quincenal,3)+VLOOKUP(AA172,quincenal,2)-VLOOKUP(AA172,subquincenal,2),0) -> -27.777088 | AG172: =TRUNC(IF(AF172>0.01,AF172,0),2) -> 0 | AH172: =TRUNC(IF(AF172<0.01,-AF172,0),2) -> 27.77 | AI172: =AB172-AD172-AE172-AG172+AH172 -> 2589.09 | AL172: 135
A173: =A172+1 -> 89 | D173: CABRALES MEZA CECILIO | E173: GOES781103IAA | F173: GOES781103MJCDNL05 | G173: 2009-01-01 | H173: VIGILANTE EN EL DOMO | P173: 15 | Q173: TARJETA | S173: 0 | T173: 0 | U173: =3158/30 -> 105.2666667 | V173: 1579 | W173: 63.16 | X173: 110.53 | Y173: 0 | Z173: 173.69 | AA173: 1579 | AB173: 1752.69 | AE173: 0 | AF173: =IF(U173>0.01,(AA173-VLOOKUP(AA173,quincenal,1))*VLOOKUP(AA173,quincenal,3)+VLOOKUP(AA173,quincenal,2)-VLOOKUP(AA173,subquincenal,2),0) -> -110.66184 | AG173: =TRUNC(IF(AF173>0.01,AF173,0),2) -> 0 | AH173: 110.66 | AI173: 1863.35 | AJ173: =[2]PORTADA!$D$10 -> 1 | AL173: 141
D174: DEPARTAMENTO DE DEPORTES | V174: =SUM(V172:V173) -> 3886.5 | W174: 155.46 | X174: 272.05 | Y174: 0 | Z174: 427.51 | AA174: 3886.5 | AB174: 4314.01 | AC174: 0 | AD174: 0 | AE174: 0 | AF174: -138.438928 | AG174: 0 | AH174: 138.43 | AI174: 4452.44
D176: SERVICIOS MEDICOS
A177: =A173+1 -> 90 | D177: MARTINEZ VALDIVIA FRANCISCO | E177: MAVF520525 | F177: MAVF520525HJCRLR02 | G177: 2004-01-01 | H177: MEDICO MUNICIPAL | P177: 15 | Q177: TARJETA | S177: 0 | T177: 0 | U177: =7559/30 -> 251.9666667 | V177: =TRUNC(U177*P177,2) -> 3779.5 | W177: =TRUNC(U177*P177*0.04,2) -> 151.18 | X177: =TRUNC(U177*0.07*P177,2) -> 264.56 | Y177: =S177 -> 0 | Z177: =TRUNC(X177+W177+(IF(Y177>519,519,Y177))+IF(R177=0,0,R177*U177),2) -> 415.74 | AA177: =TRUNC((IF(R177=0,P177*U177,(P177-R177)*U177))+(IF(Y177<519,0,Y177-519)),2)+T177 -> 3779.5 | AB177: =Z177+AA177 -> 4195.24 | AE177: 0 | AF177: =IF(U177>0.01,(AA177-VLOOKUP(AA177,quincenal,1))*VLOOKUP(AA177,quincenal,3)+VLOOKUP(AA177,quincenal,2)-VLOOKUP(AA177,subquincenal,2),0) -> 313.8084 | AG177: =TRUNC(IF(AF177>0.01,AF177,0),2) -> 313.8 | AH177: =TRUNC(IF(AF177<0.01,-AF177,0),2) -> 0 | AI177: =AB177-AD177-AE177-AG177+AH177 -> 3881.44 | AJ177: =[2]PORTADA!$D$10 -> 1 | AL177: 142
A178: =A177+1 -> 91 | D178: LEAL FRANCISCO JAVIER | E178: MAVF520525 | F178: MAVF520525HJCRLR02 | G178: 2004-01-01 | H178: PEDIATRA | P178: 15 | Q178: TARJETA | S178: 0 | T178: 0 | U178: =8121/30 -> 270.7 | V178: =TRUNC(U178*P178,2) -> 4060.5 | W178: =TRUNC(U178*P178*0.04,2) -> 162.42 | X178: =TRUNC(U178*0.07*P178,2) -> 284.23 | Y178: =S178 -> 0 | Z178: =TRUNC(X178+W178+(IF(Y178>519,519,Y178))+IF(R178=0,0,R178*U178),2) -> 446.65 | AA178: =TRUNC((IF(R178=0,P178*U178,(P178-R178)*U178))+(IF(Y178<519,0,Y178-519)),2)+T178 -> 4060.5 | AB178: =Z178+AA178 -> 4507.15 | AE178: 0 | AF178: =IF(U178>0.01,(AA178-VLOOKUP(AA178,quincenal,1))*VLOOKUP(AA178,quincenal,3)+VLOOKUP(AA178,quincenal,2)-VLOOKUP(AA178,subquincenal,2),0) -> 358.7684 | AG178: =TRUNC(IF(AF178>0.01,AF178,0),2) -> 358.76 | AH178: =TRUNC(IF(AF178<0.01,-AF178,0),2) -> 0 | AI178: =AB178-AD178-AE178-AG178+AH178 -> 4148.39 | AL178: 143
A179: =A178+1 -> 92 | D179: ROBLES GONZALEZ CLAUDIA SUSANA | E179: MAVF520525 | F179: MAVF520525HJCRLR02 | G179: 2004-01-01 | H179: MEDICO | P179: 15 | Q179: TARJETA | S179: 0 | T179: 0 | U179: =8121/30 -> 270.7 | V179: 4060.5 | W179: 162.42 | X179: 284.23 | Y179: 0 | Z179: 446.65 | AA179: 4060.5 | AB179: 4507.15 | AE179: 0 | AF179: =IF(U179>0.01,(AA179-VLOOKUP(AA179,quincenal,1))*VLOOKUP(AA179,quincenal,3)+VLOOKUP(AA179,quincenal,2)-VLOOKUP(AA179,subquincenal,2),0) -> 358.7684 | AG179: 358.76 | AH179: 0 | AI179: 4148.39 | AL179: 144
A180: 93 | D180: COVARRUBIAS RUIZ LUIS RICARDO | H180: ENFERMERO CENTRO DE SALUD SANTA ROSALIA | P180: 15 | Q180: TARJETA | S180: 0 | T180: 0 | U180: =2562/30 -> 85.4 | V180: 1281 | W180: 51.24 | X180: 89.67 | Y180: 0 | Z180: 140.91 | AA180: 1281 | AB180: 1421.91 | AE180: 0 | AF180: =IF(U180>0.01,(AA180-VLOOKUP(AA180,quincenal,1))*VLOOKUP(AA180,quincenal,3)+VLOOKUP(AA180,quincenal,2)-VLOOKUP(AA180,subquincenal,2),0) -> -129.73384 | AG180: 0 | AH180: 129.73 | AI180: 1551.64
D181: SERVICIOS MEDICOS | V181: =SUM(V177:V180) -> 13181.5 | W181: =SUM(W177:W180) -> 527.26 | X181: 922.69 | Y181: 0 | Z181: 1449.95 | AA181: 13181.5 | AB181: 14631.45 | AC181: 0 | AD181: 0 | AE181: 0 | AF181: 901.61136 | AG181: 1031.32 | AH181: 129.73 | AI181: 13729.86 | AJ181: =SUM(AJ177:AJ179) -> 1 | AK181: 0
D184: DEPARTAMENTO DE DESARROLLO RURAL
A185: =A180+1 -> 94 | B185: 1 | C185: 19 | D185: PARRA AGUAYO JORGE | E185: MENV711022 | F185: MENV711022HJCNVC07 | H185: ENCARGADO DE DESARROLLO RURAL | P185: 15 | Q185: TARJETA | S185: 0 | T185: 0 | U185: =12653/30 -> 421.7666667 | V185: =TRUNC(U185*P185,2) -> 6326.5 | W185: =TRUNC(U185*P185*0.04,2) -> 253.06 | X185: =TRUNC(U185*0.07*P185,2) -> 442.85 | Y185: =S185 -> 0 | Z185: =TRUNC(X185+W185+(IF(Y185>519,519,Y185))+IF(R185=0,0,R185*U185),2) -> 695.91 | AA185: =TRUNC((IF(R185=0,P185*U185,(P185-R185)*U185))+(IF(Y185<519,0,Y185-519)),2)+T185 -> 6326.5 | AB185: =Z185+AA185 -> 7022.41 | AE185: 0 | AF185: =IF(U185>0.01,(AA185-VLOOKUP(AA185,quincenal,1))*VLOOKUP(AA185,quincenal,3)+VLOOKUP(AA185,quincenal,2)-VLOOKUP(AA185,subquincenal,2),0) -> 804.151224 | AG185: =TRUNC(IF(AF185>0.01,AF185,0),2) -> 804.15 | AH185: =TRUNC(IF(AF185<0.01,-AF185,0),2) -> 0 | AI185: =AB185-AD185-AE185-AG185+AH185 -> 6218.26 | AL185: 146
A186: =A185+1 -> 95 | D186: MONTES COLIMA DIANA ROCIO | E186: PAGO721112 | F186: PAGO721112HJCLRS01 | H186: AUXILIAR DE DESARROLLO RURAL | P186: 15 | Q186: TARJETA | S186: 0 | T186: 0 | U186: =5714/30 -> 190.4666667 | V186: =TRUNC(U186*P186,2) -> 2857 | W186: =TRUNC(U186*P186*0.04,2) -> 114.28 | X186: =TRUNC(U186*0.07*P186,2) -> 199.99 | Y186: =S186 -> 0 | Z186: =TRUNC(X186+W186+(IF(Y186>519,519,Y186))+IF(R186=0,0,R186*U186),2) -> 314.27 | AA186: =TRUNC((IF(R186=0,P186*U186,(P186-R186)*U186))+(IF(Y186<519,0,Y186-519)),2)+T186 -> 2857 | AB186: =Z186+AA186 -> 3171.27 | AE186: 0 | AF186: =IF(U186>0.01,(AA186-VLOOKUP(AA186,quincenal,1))*VLOOKUP(AA186,quincenal,3)+VLOOKUP(AA186,quincenal,2)-VLOOKUP(AA186,subquincenal,2),0) -> 61.408512 | AG186: =TRUNC(IF(AF186>0.01,AF186,0),2) -> 61.4 | AH186: =TRUNC(IF(AF186<0.01,-AF186,0),2) -> 0 | AI186: =AB186-AD186-AE186-AG186+AH186 -> 3109.87 | AL186: 147
D187: DEPARTAMENTO DE DESARROLLO RURAL | V187: =SUM(V185:V186) -> 9183.5 | W187: 367.34 | X187: 642.84 | Y187: 0 | Z187: 1010.18 | AA187: 9183.5 | AB187: 10193.68 | AC187: 0 | AD187: 0 | AE187: 0 | AF187: 865.559736 | AG187: 865.55 | AH187: 0 | AI187: 9328.13
D190: CONTRALORIA
A191: =A186+1 -> 96 | B191: 3 | C191: 1 | D191: MATA COVARRUBIAS ALAN MARCOS | E191: BUHM840914 | H191: CONTRALOR | P191: 15 | Q191: TARJETA | S191: 0 | T191: 0 | U191: =12653/30 -> 421.7666667 | V191: =TRUNC(U191*P191,2) -> 6326.5 | W191: =TRUNC(U191*P191*0.04,2) -> 253.06 | X191: =TRUNC(U191*0.07*P191,2) -> 442.85 | Y191: =S191 -> 0 | Z191: =TRUNC(X191+W191+(IF(Y191>519,519,Y191))+IF(R191=0,0,R191*U191),2) -> 695.91 | AA191: =TRUNC((IF(R191=0,P191*U191,(P191-R191)*U191))+(IF(Y191<519,0,Y191-519)),2)+T191 -> 6326.5 | AB191: =Z191+AA191 -> 7022.41 | AE191: 0 | AF191: =IF(U191>0.01,(AA191-VLOOKUP(AA191,quincenal,1))*VLOOKUP(AA191,quincenal,3)+VLOOKUP(AA191,quincenal,2)-VLOOKUP(AA191,subquincenal,2),0) -> 804.151224 | AG191: =TRUNC(IF(AF191>0.01,AF191,0),2) -> 804.15 | AH191: =TRUNC(IF(AF191<0.01,-AF191,0),2) -> 0 | AI191: =AB191-AD191-AE191-AG191+AH191 -> 6218.26 | AJ191: =#REF! ->  | AL191: 149
A192: =A191+1 -> 97 | D192: RODRIGUEZ CASTELLANOS ANGELICA IVETTE | E192: LEPC870628 | H192: ASISITENTEDE CONTRALORIA | P192: 15 | Q192: TARJETA | S192: 0 | T192: 0 | U192: =5714/30 -> 190.4666667 | V192: =TRUNC(U192*P192,2) -> 2857 | W192: =TRUNC(U192*P192*0.04,2) -> 114.28 | X192: =TRUNC(U192*0.07*P192,2) -> 199.99 | Y192: =S192 -> 0 | Z192: =TRUNC(X192+W192+(IF(Y192>519,519,Y192))+IF(R192=0,0,R192*U192),2) -> 314.27 | AA192: =TRUNC((IF(R192=0,P192*U192,(P192-R192)*U192))+(IF(Y192<519,0,Y192-519)),2)+T192 -> 2857 | AB192: =Z192+AA192 -> 3171.27 | AE192: 0 | AF192: =IF(U192>0.01,(AA192-VLOOKUP(AA192,quincenal,1))*VLOOKUP(AA192,quincenal,3)+VLOOKUP(AA192,quincenal,2)-VLOOKUP(AA192,subquincenal,2),0) -> 61.408512 | AG192: =TRUNC(IF(AF192>0.01,AF192,0),2) -> 61.4 | AH192: =TRUNC(IF(AF192<0.01,-AF192,0),2) -> 0 | AI192: =AB192-AD192-AE192-AG192+AH192 -> 3109.87 | AJ192: =#REF! ->  | AL192: 150
D193: CONTRALORIA | V193: =SUM(V191:V192) -> 9183.5 | W193: =SUM(W191:W192) -> 367.34 | X193: 642.84 | Y193: 0 | Z193: 1010.18 | AA193: 9183.5 | AB193: 10193.68 | AC193: 0 | AD193: 0 | AE193: 0 | AF193: 865.559736 | AG193: 865.55 | AH193: 0 | AI193: 9328.13
D195: DELEGACIONES
A196: =A192+1 -> 98 | B196: 2 | C196: 1 | D196: ARVIZU BACILIO ALONSO CANUTO | H196: DELEGADO MUNICIPAL DE OCONAHUA | P196: 15 | Q196: TARJETA | S196: 0 | T196: 0 | U196: =3556/30 -> 118.5333333 | V196: =TRUNC(U196*P196,2) -> 1778 | W196: =TRUNC(U196*P196*0.04,2) -> 71.12 | X196: =TRUNC(U196*0.07*P196,2) -> 124.46 | Y196: =S196 -> 0 | Z196: =TRUNC(X196+W196+(IF(Y196>519,519,Y196))+IF(R196=0,0,R196*U196),2) -> 195.58 | AA196: =TRUNC((IF(R196=0,P196*U196,(P196-R196)*U196))+(IF(Y196<519,0,Y196-519)),2)+T196 -> 1778 | AB196: =Z196+AA196 -> 1973.58 | AE196: 0 | AF196: =IF(U196>0.01,(AA196-VLOOKUP(AA196,quincenal,1))*VLOOKUP(AA196,quincenal,3)+VLOOKUP(AA196,quincenal,2)-VLOOKUP(AA196,subquincenal,2),0) -> -85.92584 | AG196: 0 | AH196: =TRUNC(IF(AF196<0.01,-AF196,0),2) -> 85.92 | AI196: =AB196-AD196-AE196-AG196+AH196 -> 2059.5 | AJ196: =#REF! ->  | AL196: 151
A197: =A196+1 -> 99 | D197: CORONA TIZNADO OSIRIS ELVIA | H197: SECRETARIA DEL REGISTRO CIVIL | P197: 15 | Q197: TARJETA | S197: 0 | T197: 0 | U197: =3933/30 -> 131.1 | V197: 1966.5 | W197: 78.66 | X197: 137.65 | Y197: 0 | Z197: 216.31 | AA197: 1966.5 | AB197: 2182.81 | AE197: 0 | AF197: -73.86184 | AG197: =TRUNC(IF(AF197>0.01,AF197,0),2) -> 0 | AH197: 73.86 | AI197: 2256.67
A198: =A197+1 -> 100 | D198: BRAMBILA MELCHOR ADRIAN | H198: ENCARGADO DE OBRAS ´PUBLICAS EN OCONAHUA | P198: 15 | Q198: TARJETA | S198: 0 | T198: 0 | U198: =6795/30 -> 226.5 | V198: =TRUNC(U198*P198,2) -> 3397.5 | W198: =TRUNC(U198*P198*0.04,2) -> 135.9 | X198: =TRUNC(U198*0.07*P198,2) -> 237.82 | Y198: =S198 -> 0 | Z198: =TRUNC(X198+W198+(IF(Y198>519,519,Y198))+IF(R198=0,0,R198*U198),2) -> 373.72 | AA198: =TRUNC((IF(R198=0,P198*U198,(P198-R198)*U198))+(IF(Y198<519,0,Y198-519)),2)+T198 -> 3397.5 | AB198: =Z198+AA198 -> 3771.22 | AE198: 0 | AF198: =IF(U198>0.01,(AA198-VLOOKUP(AA198,quincenal,1))*VLOOKUP(AA198,quincenal,3)+VLOOKUP(AA198,quincenal,2)-VLOOKUP(AA198,subquincenal,2),0) -> 140.464912 | AG198: =TRUNC(IF(AF198>0.01,AF198,0),2) -> 140.46 | AH198: =TRUNC(IF(AF198<0.01,-AF198,0),2) -> 0 | AI198: =AB198-AD198-AE198-AG198+AH198 -> 3630.76
A199: 101 | D199: LOPEZ REYES LINO | E199: LORL560923 | F199: LORL560923HJCPYN00 | H199: GUARDARRASTRO | P199: 15 | Q199: TARJETA | S199: 0 | T199: 0 | U199: =2981/30 -> 99.36666667 | V199: =TRUNC(U199*P199,2) -> 1490.5 | W199: =TRUNC(U199*P199*0.04,2) -> 59.62 | X199: =TRUNC(U199*0.07*P199,2) -> 104.33 | Y199: =S199 -> 0 | Z199: =TRUNC(X199+W199+(IF(Y199>519,519,Y199))+IF(R199=0,0,R199*U199),2) -> 163.95 | AA199: =TRUNC((IF(R199=0,P199*U199,(P199-R199)*U199))+(IF(Y199<519,0,Y199-519)),2)+T199 -> 1490.5 | AB199: =Z199+AA199 -> 1654.45 | AE199: 0 | AF199: =IF(U199>0.01,(AA199-VLOOKUP(AA199,quincenal,1))*VLOOKUP(AA199,quincenal,3)+VLOOKUP(AA199,quincenal,2)-VLOOKUP(AA199,subquincenal,2),0) -> -116.32584 | AG199: =TRUNC(IF(AF199>0.01,AF199,0),2) -> 0 | AH199: =TRUNC(IF(AF199<0.01,-AF199,0),2) -> 116.32 | AI199: =AB199-AD199-AE199-AG199+AH199 -> 1770.77 | AJ199: =[2]PORTADA!$D$10 -> 1 | AL199: 155
A200: 102 | D200: CERVANTES SANCHEZ GABRIEL | E200: CESG4509243P3 | F200: CESG450924HMNRNB03 | G200: 2004-02-08 | H200: ENCARGADO DE CEMENTERIOS | P200: 15 | Q200: TARJETA | S200: 0 | T200: 0 | U200: =1880/30 -> 62.66666667 | V200: 940 | W200: 37.6 | X200: 65.8 | Y200: 0 | Z200: 103.4 | AA200: 940 | AB200: 1043.4 | AE200: 0 | AF200: -151.55784 | AG200: 0 | AH200: 151.55 | AI200: 1194.95 | AJ200: =[2]PORTADA!$D$10 -> 1 | AL200: 158
D201: DELEGACIONES | V201: =SUM(V196:V200) -> 9572.5 | W201: 382.9 | X201: 670.06 | Y201: 0 | Z201: 1052.96 | AA201: 9572.5 | AB201: 10625.46 | AC201: 0 | AD201: 0 | AE201: 0 | AF201: -287.206448 | AG201: 140.46 | AH201: 427.65 | AI201: 10912.65 | AK201: 0
V204: =V18+V24+V31+V36+V42+V47+V52+V59+V63+V70+V77+V84+V95+V104+V110+V114+V119+V126+V134+V140+V144+V149+V159+V163+V168+V174+V181+V187+V193+V201 -> 442936.3 | W204: 17717.45 | X204: 31005.29 | Y204: 0 | Z204: 48722.74 | AA204: 442936.3 | AB204: 491659.04 | AC204: 0 | AD204: 3000 | AE204: 0 | AF204: 40672.35427 | AG204: 42447.79 | AH204: 1775.82 | AI204: 447987.07
D209: L.A.F. EDUARDO RON RAMOS | P209: L.C.P. MARTIN DANIEL FREGOSO BARBOZA | AH209: ING. MARIO CAMARENA GONZALEZ RUBIO
D210: PRESIDENTE MUNICIPAL | P210: SINDICO MUNICIPAL | AH210: ENCARGADO DE LA HACIENDA PUBLICA
D218: DIRECCION DE SEGURIDAD PUBLICA
A219: =A200+1 -> 103 | D219: AGUIRRE REYES RAUL ANTONIO | H219: POLICIA DE LINEA | P219: 15 | Q219: TARJETA | S219: 0 | T219: 0 | U219: =6845/30 -> 228.1666667 | V219: =TRUNC(U219*P219,2) -> 3422.5 | W219: =TRUNC(U219*P219*0.04,2) -> 136.9 | X219: =TRUNC(U219*0.07*P219,2) -> 239.57 | Y219: =S219 -> 0 | Z219: =TRUNC(X219+W219+(IF(Y219>519,519,Y219))+IF(R219=0,0,R219*U219),2) -> 376.47 | AA219: =TRUNC((IF(R219=0,P219*U219,(P219-R219)*U219))+(IF(Y219<519,0,Y219-519)),2)+T219 -> 3422.5 | AB219: =Z219+AA219 -> 3798.97 | AD219: 0 | AE219: 0 | AF219: =IF(U219>0.01,(AA219-VLOOKUP(AA219,quincenal,1))*VLOOKUP(AA219,quincenal,3)+VLOOKUP(AA219,quincenal,2)-VLOOKUP(AA219,subquincenal,2),0) -> 143.184912 | AG219: =TRUNC(IF(AF219>0.01,AF219,0),2) -> 143.18 | AH219: =TRUNC(IF(AF219<0.01,-AF219,0),2) -> 0 | AI219: =AB219-AD219-AE219-AG219+AH219 -> 3655.79 | AL219: 2
A220: =A219+1 -> 104 | B220: 11 | C220: 17 | D220: ARVIZU GIL HOMERO JOSE | E220: AIGH730225LE1 | F220: AIGH730225HJCRLM08 | H220: POLICIA DE LINEA | P220: 15 | Q220: TARJETA | S220: 0 | T220: 0 | U220: =6845/30 -> 228.1666667 | V220: 3422.5 | W220: 136.9 | X220: 239.57 | Y220: 0 | Z220: 376.47 | AA220: 3422.5 | AB220: 3798.97 | AE220: 0 | AF220: 143.184912 | AG220: 143.18 | AH220: 0 | AI220: 3655.79 | AJ220: =#REF! ->  | AL220: 3
A221: =A220+1 -> 105 | B221: 11 | C221: 17 | D221: CAMPERO MARTINEZ JUAN DANIEL | E221: ROMP450629DNA | F221: ROMP450629HJCSCB04 | H221: POLICIA EN LINEA | P221: 15 | Q221: TARJETA | S221: 0 | T221: 0 | U221: 228.1666667 | V221: 3422.5 | W221: 136.9 | X221: 239.57 | Y221: 0 | Z221: 376.47 | AA221: 3422.5 | AB221: 3798.97 | AE221: 0 | AF221: 143.184912 | AG221: 143.18 | AH221: 0 | AI221: 3655.79 | AL221: 4
A222: 106 | B222: 11 | C222: 17 | D222: CARRILLO MURILLO SALVADOR | E222: CAMS620429F91 | F222: CAMS620429HNTRRL00 | H222: POLICIA DE LINEA | P222: 15 | Q222: TARJETA | S222: 0 | T222: 0 | U222: 228.1666667 | V222: 3422.5 | W222: 136.9 | X222: 239.57 | Y222: 0 | Z222: 376.47 | AA222: 3422.5 | AB222: 3798.97 | AE222: 0 | AF222: 143.184912 | AG222: 143.18 | AH222: 0 | AI222: 3655.79 | AJ222: =#REF! ->  | AL222: 5
A223: 107 | B223: 11 | C223: 17 | D223: CASTAÑEDA ARANDAS EFREN | H223: OFICIAL DE PREVENCION SOCIAL | P223: 15 | Q223: TARJETA | S223: 0 | T223: 0 | U223: 228.1666667 | V223: 3422.5 | W223: 136.9 | X223: 239.57 | Y223: 0 | Z223: 376.47 | AA223: 3422.5 | AB223: 3798.97 | AD223: 0 | AE223: 0 | AF223: 143.184912 | AG223: 143.18 | AH223: 0 | AI223: 3655.79 | AJ223: =#REF! ->  | AL223: 6
A224: 108 | D224: CASTELLANOS RODRIGUEZ SUSANA LIZETH | E224: CAMS620429F91 | F224: CAMS620429HNTRRL00 | H224: POLICIA DE LINEA | P224: 15 | Q224: TARJETA | S224: 0 | T224: 0 | U224: 228.1666667 | V224: 3422.5 | W224: 136.9 | X224: 239.57 | Y224: 0 | Z224: 376.47 | AA224: 3422.5 | AB224: 3798.97 | AE224: 0 | AF224: 143.184912 | AG224: 143.18 | AH224: 0 | AI224: 3655.79 | AL224: 7
A225: 109 | D225: CORONA MARTINEZ JESUS MARIANO | H225: POLICIA DE LINEA | P225: 15 | Q225: TARJETA | S225: 0 | T225: 0 | U225: 228.1666667 | V225: 3422.5 | W225: 136.9 | X225: 239.57 | Y225: 0 | Z225: 376.47 | AA225: 3422.5 | AB225: 3798.97 | AD225: 0 | AE225: 0 | AF225: 143.184912 | AG225: 143.18 | AH225: 0 | AI225: 3655.79 | AL225: 9
A226: 110 | B226: 11 | C226: 17 | D226: DOMINGUEZ PEREZ NOE | E226: GASR | H226: POLICIA DE LINEA | P226: 15 | Q226: TARJETA | S226: 0 | T226: 0 | U226: 228.1666667 | V226: 3422.5 | W226: 136.9 | X226: 239.57 | Y226: 0 | Z226: 376.47 | AA226: 3422.5 | AB226: 3798.97 | AE226: 0 | AF226: 143.184912 | AG226: 143.18 | AH226: 0 | AI226: 3655.79 | AJ226: =#REF! ->  | AL226: 10
A227: 111 | B227: 11 | C227: 17 | D227: FIGUEROA SANTIAGO JAVIER ANTONIO | E227: CAPV791223 | F227: CAPU791223HJCMTC05 | H227: POLICIA EN LINEA | P227: 15 | Q227: TARJETA | S227: 0 | T227: 0 | U227: 228.1666667 | V227: 3422.5 | W227: 136.9 | X227: 239.57 | Y227: 0 | Z227: 376.47 | AA227: 3422.5 | AB227: 3798.97 | AE227: 0 | AF227: 143.184912 | AG227: 143.18 | AH227: 0 | AI227: 3655.79 | AJ227: =#REF! ->  | AL227: 11
A228: 112 | D228: GARCIA FIGUEROA GUSTAVO | E228: HEAS | H228: COMANDANTE | P228: 15 | Q228: TARJETA | S228: 0 | T228: 0 | U228: =9121/30 -> 304.0333333 | V228: 4560.5 | W228: 182.42 | X228: 319.23 | Y228: 0 | Z228: 501.65 | AA228: 4560.5 | AB228: 5062.15 | AE228: 0 | AF228: 444.747088 | AG228: 444.74 | AH228: =TRUNC(IF(AF228<0.01,-AF228,0),2) -> 0 | AI228: 4617.41 | AL228: 13
A229: 113 | D229: GARCIA FIGUEROA JOSE MANUEL | H229: COMANDANTE | P229: 15 | Q229: TARJETA | S229: 0 | T229: 0 | U229: =9121/30 -> 304.0333333 | V229: =TRUNC(U229*P229,2) -> 4560.5 | W229: =TRUNC(U229*P229*0.04,2) -> 182.42 | X229: =TRUNC(U229*0.07*P229,2) -> 319.23 | Y229: =S229 -> 0 | Z229: =TRUNC(X229+W229+(IF(Y229>519,519,Y229))+IF(R229=0,0,R229*U229),2) -> 501.65 | AA229: =TRUNC((IF(R229=0,P229*U229,(P229-R229)*U229))+(IF(Y229<519,0,Y229-519)),2)+T229 -> 4560.5 | AB229: =Z229+AA229 -> 5062.15 | AE229: 0 | AF229: =IF(U229>0.01,(AA229-VLOOKUP(AA229,quincenal,1))*VLOOKUP(AA229,quincenal,3)+VLOOKUP(AA229,quincenal,2)-VLOOKUP(AA229,subquincenal,2),0) -> 444.747088 | AG229: =TRUNC(IF(AF229>0.01,AF229,0),2) -> 444.74 | AH229: =TRUNC(IF(AF229<0.01,-AF229,0),2) -> 0 | AI229: =AB229-AD229-AE229-AG229+AH229 -> 4617.41 | AL229: 14
A230: 114 | D230: GARCIA GARCIA ROGELIO | H230: POLICIA DE LINEA | P230: 15 | Q230: TARJETA | S230: 0 | T230: 0 | U230: 228.1666667 | V230: 3422.5 | W230: 136.9 | X230: 239.57 | Y230: 0 | Z230: 376.47 | AA230: 3422.5 | AB230: 3798.97 | AD230: 0 | AE230: 0 | AF230: 143.184912 | AG230: 143.18 | AH230: 0 | AI230: 3655.79 | AL230: 16
A231: 115 | B231: 11 | C231: 17 | D231: GARCIA MAGALLANES FRANCISCO | H231: POLICIA DE LINEA | P231: 15 | Q231: TARJETA | S231: 0 | T231: 0 | U231: 228.1666667 | V231: 3422.5 | W231: 136.9 | X231: 239.57 | Y231: 0 | Z231: 376.47 | AA231: 3422.5 | AB231: 3798.97 | AD231: 0 | AE231: 0 | AF231: 143.184912 | AG231: 143.18 | AH231: 0 | AI231: 3655.79 | AJ231: =#REF! ->  | AL231: 17
A232: 116 | B232: 11 | C232: 17 | D232: GAYTAN PEREZ LUIS GABRIEL | H232: SUB DIRECTOR | P232: 15 | Q232: TARJETA | S232: 0 | T232: 0 | U232: =10948/30 -> 364.9333333 | V232: 5474 | W232: 218.96 | X232: 383.18 | Y232: 0 | Z232: 602.14 | AA232: 5474 | AB232: 6076.14 | AE232: 0 | AF232: 622.057224 | AG232: 622.05 | AH232: 0 | AI232: 5454.09 | AJ232: =#REF! ->  | AL232: 18
A233: 117 | D233: GOMEZ MEZA ARMANDO | H233: POLICIA EN LINEA | P233: 15 | Q233: TARJETA | S233: 0 | T233: 0 | U233: 228.1666667 | V233: 3422.5 | W233: 136.9 | X233: 239.57 | Y233: 0 | Z233: 376.47 | AA233: 3422.5 | AB233: 3798.97 | AE233: 0 | AF233: 143.184912 | AG233: 143.18 | AH233: 0 | AI233: 3655.79 | AJ233: =#REF! ->  | AL233: 19
A234: 118 | B234: 11 | C234: 17 | D234: GOMEZ TOVAR JUAN FRANCISCO | E234: GOCB550313 | F234: GOCB550313HJCMHN07 | G234: 2007-01-01 | H234: POLICIA EN LINEA | P234: 15 | Q234: TARJETA | S234: 0 | T234: 0 | U234: 228.1666667 | V234: 3422.5 | W234: 136.9 | X234: 239.57 | Y234: 0 | Z234: 376.47 | AA234: 3422.5 | AB234: 3798.97 | AE234: 0 | AF234: 143.184912 | AG234: 143.18 | AH234: 0 | AI234: 3655.79 | AJ234: =#REF! ->  | AL234: 20
A235: 119 | B235: 11 | C235: 17 | D235: GONZALEZ CAMPOS JOSE MANUEL | H235: POLICIA EN LINEA | P235: 15 | Q235: TARJETA | S235: 0 | T235: 0 | U235: 228.1666667 | V235: 3422.5 | W235: 136.9 | X235: 239.57 | Y235: 0 | Z235: 376.47 | AA235: 3422.5 | AB235: 3798.97 | AE235: 0 | AF235: 143.184912 | AG235: 143.18 | AH235: 0 | AI235: 3655.79 | AJ235: =#REF! ->  | AL235: 21
A236: 120 | D236: HERNANDEZ ARIAS SEBASTIAN | E236: RUGE | H236: POLICIA DE LINEA | P236: 15 | Q236: TARJETA | S236: 0 | T236: 0 | U236: 228.1666667 | V236: 3422.5 | W236: 136.9 | X236: 239.57 | Y236: 0 | Z236: 376.47 | AA236: 3422.5 | AB236: 3798.97 | AE236: 0 | AF236: 143.184912 | AG236: 143.18 | AH236: 0 | AI236: 3655.79 | AL236: 22
A237: 121 | B237: 11 | C237: 17 | D237: HERNANDEZ PALACIOS REFUGIO GUADALUPE | E237: DENL910517 | F237: DENL910517HJCLVS07 | H237: POLICIA DE LINEA | P237: 15 | Q237: TARJETA | S237: 0 | T237: 0 | U237: 228.1666667 | V237: 3422.5 | W237: 136.9 | X237: 239.57 | Y237: 0 | Z237: 376.47 | AA237: 3422.5 | AB237: 3798.97 | AE237: 0 | AF237: 143.184912 | AG237: 143.18 | AH237: 0 | AI237: 3655.79 | AJ237: =#REF! ->  | AL237: 23
A238: 122 | D238: INFANTE GUTIERREZ CRISTINA | H238: OFICIAL DE PREVENCION SOCIAL | P238: 15 | Q238: TARJETA | S238: 0 | T238: 0 | U238: 228.1666667 | V238: 3422.5 | W238: 136.9 | X238: 239.57 | Y238: 0 | Z238: 376.47 | AA238: 3422.5 | AB238: 3798.97 | AE238: 0 | AF238: 143.184912 | AG238: 143.18 | AH238: 0 | AI238: 3655.79 | AL238: 24
A239: 123 | D239: MANCILLAS MORA MARTIN | E239: MAMM741224 | F239: MAMM741224HCJNRR00 | H239: POLICIA EN LINEA | P239: 15 | Q239: TARJETA | S239: 0 | T239: 0 | U239: 228.1666667 | V239: 3422.5 | W239: 136.9 | X239: 239.57 | Y239: 0 | Z239: 376.47 | AA239: 3422.5 | AB239: 3798.97 | AD239: 0 | AE239: 0 | AF239: 143.184912 | AG239: 143.18 | AH239: 0 | AI239: 3655.79 | AL239: 25
A240: 124 | D240: MARTINEZ GARCIA JOSE ENRIQUE | H240: POLICIA DE LINEA | P240: 15 | Q240: TARJETA | S240: 0 | T240: 0 | U240: 228.1666667 | V240: 3422.5 | W240: 136.9 | X240: 239.57 | Y240: 0 | Z240: 376.47 | AA240: 3422.5 | AB240: 3798.97 | AD240: 0 | AE240: 0 | AF240: 143.184912 | AG240: 143.18 | AH240: 0 | AI240: 3655.79 | AL240: 27
A241: 125 | D241: MARTINEZ GARCIA MARIA GRACIELA | H241: POLICIA DE LINEA | P241: 15 | Q241: TARJETA | S241: 0 | T241: 0 | U241: 228.1666667 | V241: 3422.5 | W241: 136.9 | X241: 239.57 | Y241: 0 | Z241: 376.47 | AA241: 3422.5 | AB241: 3798.97 | AD241: 0 | AE241: 0 | AF241: 143.184912 | AG241: 143.18 | AH241: 0 | AI241: 3655.79 | AL241: 28
A242: 126 | D242: MEDERO ARRIAGA JESUS ALEJANDRO | H242: POLICIA DE LINEA | P242: 15 | Q242: TARJETA | S242: 0 | T242: 0 | U242: 228.1666667 | V242: 3422.5 | W242: 136.9 | X242: 239.57 | Y242: 0 | Z242: 376.47 | AA242: 3422.5 | AB242: 3798.97 | AD242: 500 | AE242: 0 | AF242: 143.184912 | AG242: 143.18 | AH242: 0 | AI242: 3155.79 | AL242: 29
A243: 127 | D243: MORENO GONZALEZ JOSE ANTONIO | H243: POLICIA DE LINEA | P243: 15 | Q243: TARJETA | S243: 0 | T243: 0 | U243: 228.1666667 | V243: 3422.5 | W243: 136.9 | X243: 239.57 | Y243: 0 | Z243: 376.47 | AA243: 3422.5 | AB243: 3798.97 | AD243: 566 | AE243: 0 | AF243: 143.184912 | AG243: 143.18 | AH243: 0 | AI243: 3089.79 | AL243: 30
A244: 128 | D244: RAMIREZ ALVAREZ ANAHI | H244: POLICIA EN LINEA | P244: 15 | Q244: TARJETA | S244: 0 | T244: 0 | U244: 228.1666667 | V244: 3422.5 | W244: 136.9 | X244: 239.57 | Y244: 0 | Z244: 376.47 | AA244: 3422.5 | AB244: 3798.97 | AE244: 0 | AF244: 143.184912 | AG244: 143.18 | AH244: 0 | AI244: 3655.79
A245: 129 | B245: 11 | C245: 17 | D245: REGALADO AQUINO JUAN | E245: REAJ700624U14 | F245: REAJ700624HJCGQN05 | H245: POLICIA DE LINEA | P245: 15 | Q245: TARJETA | S245: 0 | T245: 0 | U245: 228.1666667 | V245: 3422.5 | W245: 136.9 | X245: 239.57 | Y245: 0 | Z245: 376.47 | AA245: 3422.5 | AB245: 3798.97 | AE245: 0 | AF245: 143.184912 | AG245: 143.18 | AH245: 0 | AI245: 3655.79 | AJ245: =#REF! -> 
... 57 more rows

Sheet Tablas 2015
A1: TARIFA MENSUAL ISR | E1: TARIFA QUINCENAL ISR | I1: TARIFA SEMANAL ISR | M1: 0.01 | N1: 496.07 | O1: 0 | P1: 1.92
A2: 2015 | E2: 2015 | I2: 2015 | M2: 496.08 | N2: 4210.41 | O2: 9.52 | P2: 6.4
A3: Lim. Inferior | B3: Cuota Fija | C3: % | E3: Lim. Inferior | F3: Cuota Fija | G3: % | I3: Lim. Inferior | J3: Cuota Fija | K3: % | M3: 4210.42 | N3: 7399.42 | O3: 247.24 | P3: 10.88
A4: 0.01 | B4: 0 | C4: 0.0192 | E4: 0.01 | F4: 0 | G4: 0.0192 | I4: 0.01 | J4: 0 | K4: 0.0192 | M4: 7399.43 | N4: 8601.5 | O4: 594.21 | P4: 16
A5: 496.08 | B5: 9.52 | C5: 0.064 | E5: 244.81 | F5: 4.65 | G5: 0.064 | I5: 114.25 | J5: 2.17 | K5: 0.064 | M5: 8601.51 | N5: 10298.35 | O5: 786.54 | P5: 17.92
A6: 4210.42 | B6: 247.24 | C6: 0.1088 | E6: 2077.51 | F6: 121.95 | G6: 0.1088 | I6: 969.51 | J6: 56.91 | K6: 0.1088 | M6: 10298.36 | N6: 20770.29 | O6: 1090.61 | P6: 21.36
A7: 7399.43 | B7: 594.21 | C7: 0.16 | E7: 3651.01 | F7: 293.25 | G7: 0.16 | I7: 1703.81 | J7: 136.85 | K7: 0.16 | M7: 20770.3 | N7: 32736.83 | O7: 3327.42 | P7: 23.52
A8: 8601.51 | B8: 786.54 | C8: 0.1792 | E8: 4244.11 | F8: 388.05 | G8: 0.1792 | I8: 1980.59 | J8: 181.09 | K8: 0.1792 | M8: 32736.84 | N8: 62500 | O8: 6141.95 | P8: 30
A9: 10298.36 | B9: 1090.61 | C9: 0.2136 | E9: 5081.41 | F9: 538.2 | G9: 0.2136 | I9: 2371.33 | J9: 251.16 | K9: 0.2136 | M9: 62500.01 | N9: 83333.33 | O9: 15070.9 | P9: 32
A10: 20770.3 | B10: 3327.42 | C10: 0.2352 | E10: 10248.46 | F10: 1641.75 | G10: 0.2352 | I10: 4782.62 | J10: 766.15 | K10: 0.2352 | M10: 83333.34 | N10: 250000 | O10: 21737.57 | P10: 34
A11: 32736.84 | B11: 6141.95 | C11: 0.3 | E11: 16153.06 | F11: 3030.6 | G11: 0.3 | I11: 7538.1 | J11: 1414.28 | K11: 0.3 | M11: 250000.01 | N11: En adelante | O11: 78404.23 | P11: 35
A12: 62500.01 | B12: 15070.9 | C12: 0.32 | E12: 30838.81 | F12: 7436.25 | G12: 0.32 | I12: 14391.45 | J12: 3470.25 | K12: 0.32
A13: 83333.34 | B13: 21737.57 | C13: 0.34 | E13: 41118.46 | F13: 10725.75 | G13: 0.34 | I13: 19188.62 | J13: 5005.35 | K13: 0.34
A14: 250000.01 | B14: 78404.23 | C14: 0.35 | E14: 123355.21 | F14: 38686.35 | G14: 0.35 | I14: 57565.77 | J14: 18053.63 | K14: 0.35
A19: SUBSIDIO PARA EL EMPLEO | E19: SUBSIDIO PARA EL EMPLEO | I19: SUBSIDIO PARA EL EMPLEO
A20: =+A2 -> 2015 | E20: =+E2 -> 2015 | I20: =+I2 -> 2015 | L20: 0.01 | M20: 1768.96 | N20: 407.02
A21: Para | B21: SE | E21: Para | F21: SE | I21: Para | J21: SE | L21: 1768.97 | M21: 2653.38 | N21: 406.83
A22: Ingresos | B22: Mensual | E22: Ingresos | F22: Quincenal | I22: Ingresos | J22: Semanal | L22: 2653.39 | M22: 3472.84 | N22: 406.62
A23: 0.01 | B23: 407.02 | E23: 0.01 | F23: 200.85 | I23: 0.01 | J23: 93.73 | L23: 3472.85 | M23: 3537.87 | N23: 392.77
A24: 1768.97 | B24: 406.83 | E24: 872.86 | F24: 200.7 | I24: 407.34 | J24: 93.66 | L24: 3537.88 | M24: 4446.15 | N24: 382.46
A25: 2653.39 | B25: 406.62 | E25: 1309.21 | F25: 200.7 | I25: 610.97 | J25: 93.66 | L25: 4446.16 | M25: 4717.18 | N25: 354.23
A26: 3472.85 | B26: 392.77 | E26: 1713.61 | F26: 193.8 | I26: 799.69 | J26: 90.44 | L26: 4717.19 | M26: 5335.42 | N26: 324.87
A27: 3537.88 | B27: 382.46 | E27: 1745.71 | F27: 188.7 | I27: 814.67 | J27: 88.06 | L27: 5335.43 | M27: 6224.67 | N27: 294.63
A28: 4446.16 | B28: 354.23 | E28: 2193.76 | F28: 174.75 | I28: 1023.76 | J28: 81.55 | L28: 6224.68 | M28: 7113.9 | N28: 253.54
A29: 4717.19 | B29: 324.87 | E29: 2327.56 | F29: 160.35 | I29: 1086.2 | J29: 74.83 | L29: 7113.91 | M29: 7382.33 | N29: 217.61
A30: 5335.43 | B30: 294.63 | E30: 2632.66 | F30: 145.35 | I30: 1228.58 | J30: 67.83 | L30: 7382.34 | M30: En adelante | N30: 0
A31: 6224.68 | B31: 253.54 | E31: 3071.41 | F31: 125.1 | I31: 1433.33 | J31: 58.38
A32: 7113.91 | B32: 217.61 | E32: 3510.16 | F32: 107.4 | I32: 1638.08 | J32: 50.12
A33: 7382.34 | B33: 0 | E33: 3642.61 | F33: 0 | I33: 1699.89 | J33: 0
A37: CAPITULO | B37: PARTIDA | C37: CONCEC | E37: DEPENDENCIA
A38: 1 | B38: 1 | C38: 1 | D38: SALA DE REGIDORES
A39: 1 | B39: 2 | C39: 2 | D39: PRESIDENCIA MUNICIPAL
A40: 1 | B40: 5 | C40: 3 | D40: SECRETARIA GENERAL Y SINDICATURA
A41: 1 | B41: 6 | C41: 4 | D41: OFICIALIA MAYOR
A42: 1 | B42: 7 | C42: 5 | D42: DEPARTAMENTO JURIDICO
A43: 1 | B43: 14 | C43: 6 | D43: REGISTRO CIVIL
A44: 1 | B44: 16 | C44: 7 | D44: OFICIALIA MAYOR DE CULTURA
A45: 1 | B45: 19 | C45: 8 | D45: PARTICIPACION CIUDADANA
A46: 1 | B46: 23 | C46: 9 | D46: RELACIONES EXTERIORES
A47: 2 | B47: 1 | C47: 10 | D47: DELEGACIONES
A48: 2 | B48: 2 | C48: 11 | D48: AGENCIAS
A49: 3 | B49: 1 | C49: 12 | D49: HACIENDA MUNICIPAL
A50: 3 | B50: 3 | C50: 13 | D50: DEPTO. DE INGRESOS
A51: 3 | B51: 7 | C51: 14 | D51: DEPTO. DE EGRESOS
A52: 3 | B52: 12 | C52: 15 | D52: DEPTO. DE INFORMATICA
A53: 3 | B53: 13 | C53: 16 | D53: DEPTO. DE IMPUESTO PREDIAL Y CATASTRO
A54: 4 | B54: 1 | C54: 17 | D54: DIRECCION GENERAL DE OBRAS PUBLICAS
A55: 4 | B55: 3 | C55: 18 | D55: DEPTO. DE SERVICIOS PUBLICOS
A56: 4 | B56: 4 | C56: 19 | D56: DEPTO. DE CONSTRUCCION
A57: 5 | B57: 2 | C57: 20 | D57: DEPTO. DE CEMENTERIOS
A58: 5 | B58: 3 | C58: 21 | D58: DEPTO. RASTRO
A59: 5 | B59: 5 | C59: 22 | D59: DEPTO. MERCADOS
A60: 5 | B60: 7 | C60: 23 | D60: DEPTO. DE ASEO PUBLICO
A61: 5 | B61: 8 | C61: 24 | D61: DEPTO. DE PARQUES Y JARDINES
A62: 5 | B62: 9 | C62: 25 | D62: VERTEDERO
A63: 5 | B63: 10 | C63: 26 | D63: DEPTO. DE ALUMBRADO PUBLICO
A64: 5 | B64: 11 | C64: 27 | D64: DEPTO. DE AGUA DRENAJE Y ALCANTARILLADO
A65: 5 | B65: 14 | C65: 28 | D65: DIR. DE TURISMO Y DEPORTES
A66: 5 | B66: 15 | C66: 29 | D66: SERVICIO MEDICO
A67: 5 | B67: 26 | C67: 30 | D67: INSPECCION AGRICOLA Y GANADERA
A68: 11 | B68: 17 | C68: 31 | D68: SEGURIDAD PUBLICA
A69: 11 | B69: 18 | C69: 32 | D69: PROTECCION CIVIL

Sheet Hoja1
